Workbook

Sheet INGRESO DE DATOS
A20: 1. LLENE LA INFORMACIÓN DEL ASEGURADO PROPUESTO:
B22: Nombre del Asegurado Titular | D22: JOHN DOE
B24: Número de adultos en la póliza | D24: 2 | F24: Número de niños en la póliza | H24: 3
B26: Edad del Asegurado Titular | D26: 49 | F26: Edad del/la cónyuge | H26: 39
C28: Cotizador por | D28: NOMBRE DE AGENTE
A32: 2. SELECCIONE EL PRODUCTO PARA VER LA COTIZACIÓN CORRESPONDIENTE:
B53: 2 | D53: 1

Sheet Global Ultimate Health Plan
A20: Global Ultimate Health Plan | D20: Nombre del Asegurado Titular | F20: =+'INGRESO DE DATOS'!$D$22 -> JOHN DOE
D21: Cotizado por | F21: =+'INGRESO DE DATOS'!$D$28 -> NOMBRE DE AGENTE
D23: Número de adultos en la póliza | F23: =+'INGRESO DE DATOS'!$D$24 -> 2 | H23: Edad del Asegurado Titular | I23: =+'INGRESO DE DATOS'!$D$26 -> 49
D25: Número de niños en la póliza | F25: 3 | H25: Edad del/la conyuge | I25: =+'INGRESO DE DATOS'!$H$26 -> 39
D27: Número de niños menores de 16 años | F27: =+'INGRESO DE DATOS'!$B$53 -> 2 | G27: Fecha de la cotización : | H27: =NOW() -> 2020-12-16T16:14:06.940
H28: FALSE | K28: s
E29: Deducibles | G29: PLAN 1 | H29: PLAN 2
E30: En el país de residencia | G30: 0 | H30: 1000
E31: Fuera del país de residencia | G31: 0 | H31: 1000
E33: Tarifas Anuales
E34: Prima para Asegurado Titular | G34: =(VLOOKUP($I$23,Tablas!$A$905:$G$971,3,TRUE))*1.1494 -> 32553.3068 | H34: =(VLOOKUP($I$23,Tablas!$A$905:$G$971,4,TRUE))*1.1494 -> 21004.1356
E35: Prima para conyuge | G35: =(IF($F$23=1,0,(VLOOKUP($I$25,Tablas!$A$905:$G$971,3,TRUE))))*1.1494 -> 25950.0038 | H35: =(IF($F$23=1,0,(VLOOKUP($I$25,Tablas!$A$905:$G$971,4,TRUE))))*1.1494 -> 16742.1604
E36: Prima para hijo (s) | G36: =(IF(('INGRESO DE DATOS'!H24 - 'INGRESO DE DATOS'!B53)<=0,0,IF(('INGRESO DE DATOS'!H24 - 'INGRESO DE DATOS'!B53)=Tablas!A972,Tablas!C972,IF(('INGRESO DE DATOS'!H24 - 'INGRESO DE DATOS'!B53)=Tablas!A973,Tablas!C973,Tablas!C974))))*1.1494 -> 8156.1424 | H36: =(IF(('INGRESO DE DATOS'!H24 - 'INGRESO DE DATOS'!B53)<=0,0,IF(('INGRESO DE DATOS'!H24 - 'INGRESO DE DATOS'!B53)=Tablas!A972,Tablas!D972,IF(('INGRESO DE DATOS'!H24 - 'INGRESO DE DATOS'!B53)=Tablas!A973,Tablas!D973,Tablas!D974))))*1.1494 -> 5263.1026
E37: Total de Prima neta | G37: =(SUM(G34:G36)) -> 66659.453 | H37: =(SUM(H34:H36)) -> 43009.3986
E38: Costo administrativo anual | G38: 86 | H38: 86
E39: Impuesto (14.49%) | G39: =(G38)*0% -> 0 | H39: =(H38)*0% -> 0
E41: TOTAL ANUAL | G41: =SUM(G37:G39) -> 66745.453 | H41: =SUM(H37:H39) -> 43095.3986
E42: Ahorros en tarifas de prima para niños | G42: =(IF(('INGRESO DE DATOS'!H24 - 'INGRESO DE DATOS'!B53) < 0, NA(), (IF('INGRESO DE DATOS'!H24<=0,0,IF('INGRESO DE DATOS'!H24=Tablas!A972,Tablas!C972,IF('INGRESO DE DATOS'!H24=Tablas!A973,Tablas!C973,Tablas!C974))) - IF(('INGRESO DE DATOS'!H24 - 'INGRESO DE DATOS'!B53)<=0,0,IF(('INGRESO DE DATOS'!H24 - 'INGRESO DE DATOS'!B53)=Tablas!A972,Tablas!C972,IF(('INGRESO DE DATOS'!H24 - 'INGRESO DE DATOS'!B53)=Tablas!A973,Tablas!C973,Tablas!C974))))))*1.1494 -> 11415.8408 | H42: =(IF(('INGRESO DE DATOS'!H24 - 'INGRESO DE DATOS'!B53) < 0, NA(), (IF('INGRESO DE DATOS'!H24<=0,0,IF('INGRESO DE DATOS'!H24=Tablas!A972,Tablas!D972,IF('INGRESO DE DATOS'!H24=Tablas!A973,Tablas!D973,Tablas!D974))) - IF(('INGRESO DE DATOS'!H24 - 'INGRESO DE DATOS'!B53)<=0,0,IF(('INGRESO DE DATOS'!H24 - 'INGRESO DE DATOS'!B53)=Tablas!A972,Tablas!D972,IF(('INGRESO DE DATOS'!H24 - 'INGRESO DE DATOS'!B53)=Tablas!A973,Tablas!D973,Tablas!D974))))))*1.1494 -> 7367.654
E44: Tarifas Semianuales
E45: Prima para Asegurado Titular | G45: =(VLOOKUP($I$23,Tablas!$A$1428:$G$1494,3,TRUE))*1.1494 -> 17253.2526 | H45: =(VLOOKUP($I$23,Tablas!$A$1428:$G$1494,4,TRUE))*1.1494 -> 11132.19187
E46: Prima para conyuge | G46: =(IF($F$23=1,0,(VLOOKUP($I$25,Tablas!$A$1428:$G$1494,3,TRUE))))*1.1494 -> 13753.50201 | H46: =(IF($F$23=1,0,(VLOOKUP($I$25,Tablas!$A$1428:$G$1494,4,TRUE))))*1.1494 -> 8873.345012
E47: Prima para hijo (s) | G47: =G36*Tablas!K4 -> 4322.755472 | H47: =H36*Tablas!K4 -> 2789.444378
E48: Total de Prima neta | G48: =(SUM(G45:G47)) -> 35329.51009 | H48: =(SUM(H45:H47)) -> 22794.98126
E49: Costo administrativo annual | G49: 86 | H49: 86
E50: Impuesto (14.49%) | G50: =(G49)*0% -> 0 | H50: =(H49)*0% -> 0
E51: TOTAL de primera cuota | G51: =SUM(G48:G50) -> 35415.51009 | H51: =SUM(H48:H50) -> 22880.98126
E52: Costo de segunda cuota | G52: =G48+G50 -> 35329.51009 | H52: =H48+H50 -> 22794.98126
E53: TOTAL ANUAL | G53: =G51+G52 -> 70745.02018 | H53: =H51+H52 -> 45675.96252
E54: Ahorros en tarifas de prima para niños | G54: =G42*Tablas!K4*2 -> 12100.79125 | H54: =H42*Tablas!K4*2 -> 7809.71324
E56: Tarifas Trimestrales
E57: Prima para Asegurado Titular | G57: =(VLOOKUP($I$23,Tablas!$A$1054:$G$1120,3,TRUE))*1.1494 -> 8952.15937 | H57: =(VLOOKUP($I$23,Tablas!$A$1054:$G$1120,4,TRUE))*1.1494 -> 5776.13729
E58: Prima para conyuge | G58: =(IF($F$23=1,0,(VLOOKUP($I$25,Tablas!$A$1054:$G$1120,3,TRUE))))*1.1494 -> 7136.251045 | H58: =(IF($F$23=1,0,(VLOOKUP($I$25,Tablas!$A$1054:$G$1120,4,TRUE))))*1.1494 -> 4604.09411
E59: Prima para hijo (s) | G59: =G36*Tablas!K3 -> 2242.93916 | H59: =H36*Tablas!K3 -> 1447.353215
E60: Total de Prima neta | G60: =(SUM(G57:G59)) -> 18331.34958 | H60: =(SUM(H57:H59)) -> 11827.58461
E61: Costo administrativo annual | G61: 86 | H61: 86
E62: Impuesto (14.49%) | G62: =(G61)*0% -> 0 | H62: =(H61)*0% -> 0
E64: TOTAL de primera cuota | G64: =SUM(G60:G62) -> 18417.34958 | H64: =SUM(H60:H62) -> 11913.58461
E65: Tres (3) cuotas adicionales, cada una de: | G65: =G60+G62 -> 18331.34958 | H65: =H60+H62 -> 11827.58461
E66: TOTAL ANUAL | G66: =G64+(G65*3) -> 73411.3983 | H66: =H64+(H65*3) -> 47396.33846
E67: Ahorros en tarifas de prima para niños | G67: =G42*Tablas!K3*4 -> 12557.42488 | H67: =H42*Tablas!K3*4 -> 8104.4194
E71: Tarifas Mensuales
E72: Prima para Asegurado Titular | G72: =(VLOOKUP($I$23,Tablas!$A$979:$G$1045,3,TRUE))*1.1494 -> 3038.308635 | H72: =(VLOOKUP($I$23,Tablas!$A$979:$G$1045,4,TRUE))*1.1494 -> 1960.385989
E73: Prima para conyuge | G73: =(IF($F$23=1,0,(VLOOKUP($I$25,Tablas!$A$979:$G$1045,3,TRUE))))*1.1494 -> 2422.000355 | H73: =(IF($F$23=1,0,(VLOOKUP($I$25,Tablas!$A$979:$G$1045,4,TRUE))))*1.1494 -> 1562.601637
E74: Prima para hijo (s) | G74: =G36*Tablas!K2 -> 761.2399573 | H74: =H36*Tablas!K2 -> 491.2229093
E75: Total de Prima neta | G75: =(SUM(G72:G74)) -> 6221.548947 | H75: =(SUM(H72:H74)) -> 4014.210536
E76: Costo administrativo anual | G76: 86 | H76: 86
E77: Impuesto (14.49%) | G77: =(G76)*0% -> 0 | H77: =(H76)*0% -> 0
E79: TOTAL de primera cuota | G79: =SUM(G75:G77) -> 6307.548947 | H79: =SUM(H75:H77) -> 4100.210536
E80: Once (11) cuotas mensuales cada una de: | G80: =G75+G77 -> 6221.548947 | H80: =H75+H77 -> 4014.210536
E81: TOTAL ANUAL | G81: =G79+(G80*11) -> 74744.58736 | H81: =H79+(H80*11) -> 48256.52643
E82: Ahorros en tarifas de prima para niños | G82: =G42*Tablas!K2*12 -> 12785.7417 | H82: =H42*Tablas!K2*12 -> 8251.77248
E85: Tarifas en US$ - Efectivas a partir del 1ro. de Enero de 2021
E86: Este presupuesto solamente tiene carácter informativo y en ningún momento expresa compromiso legal para suministrarle cobertura de seguro. La emisión de una póliza de seguro Bupa está sujeta a todas las evaluaciones de riesgo por parte de Bupa y a la recepción de todos los pagos de prima requeridos.

Sheet Global Elite Health Plan
A19: Bupa Global Elite Health Plan | D19: Nombre del Asegurado Titular | F19: =+'INGRESO DE DATOS'!$D$22 -> JOHN DOE
E20: Cotizado por | F20: =+'INGRESO DE DATOS'!$D$28 -> NOMBRE DE AGENTE
D22: Número de adultos en la póliza | F22: =+'INGRESO DE DATOS'!$D$24 -> 2 | H22: Edad del Asegurado Titular | I22: =+'INGRESO DE DATOS'!$D$26 -> 49
D24: Número de niños en la póliza | F24: =+'INGRESO DE DATOS'!$H$24 -> 3 | H24: Edad del/la conyuge | I24: =+'INGRESO DE DATOS'!$H$26 -> 39
D26: Número de niños menores de 10 años | F26: =+'INGRESO DE DATOS'!$D$53 -> 1 | G26: Fecha de la cotización : | H26: =NOW() -> 2020-12-16T16:14:06.940
H27: FALSE
E28: Deducibles | G28: PLAN 1 | H28: PLAN 2 | I28: PLAN 3 | J28: PLAN 4 | K28: PLAN 5
E29: En el país de residencia | G29: 250 | H29: 2000 | I29: 3500 | J29: 5000 | K29: 10000
E30: Fuera del país de residencia | G30: 5000 | H30: 2000 | I30: 3500 | J30: 5000 | K30: 10000
E32: Tarifas Anuales
E33: Prima para Asegurado Titular | G33: =(VLOOKUP($I$22,Tablas!$A$6:$G$72,3,TRUE))*1.1494 -> 13900.8436 | H33: =(VLOOKUP($I$22,Tablas!$A$6:$G$72,4,TRUE))*1.1494 -> 12183.64 | I33: =(VLOOKUP($I$22,Tablas!$A$6:$G$72,5,TRUE))*1.1494 -> 10027.3656 | J33: =(VLOOKUP($I$22,Tablas!$A$6:$G$72,6,TRUE))*1.1494 -> 8694.0616 | K33: =(VLOOKUP($I$22,Tablas!$A$6:$G$72,7,TRUE))*1.1494 -> 6742.3804
E34: Prima para conyuge | G34: =(IF($F$22=1,0,(VLOOKUP($I$24,Tablas!$A$6:$G$72,3,TRUE))))*1.1494 -> 11090.5606 | H34: =(IF($F$22=1,0,(VLOOKUP($I$24,Tablas!$A$6:$G$72,4,TRUE))))*1.1494 -> 9718.177 | I34: =(IF($F$22=1,0,(VLOOKUP($I$24,Tablas!$A$6:$G$72,5,TRUE))))*1.1494 -> 8059.5928 | J34: =(IF($F$22=1,0,(VLOOKUP($I$24,Tablas!$A$6:$G$72,6,TRUE))))*1.1494 -> 6989.5014 | K34: =(IF($F$22=1,0,(VLOOKUP($I$24,Tablas!$A$6:$G$72,7,TRUE))))*1.1494 -> 5420.5704
E35: Prima para hijo (s) | G35: =(IF(('INGRESO DE DATOS'!H24 - 'INGRESO DE DATOS'!D53)<=0,0,IF(('INGRESO DE DATOS'!H24 - 'INGRESO DE DATOS'!D53)=Tablas!A73,Tablas!C73,IF(('INGRESO DE DATOS'!H24 - 'INGRESO DE DATOS'!D53)=Tablas!A74,Tablas!C74,Tablas!C75))))*1.1494 -> 6005.615 | H35: =(IF(('INGRESO DE DATOS'!H24 - 'INGRESO DE DATOS'!D53)<=0,0,IF(('INGRESO DE DATOS'!H24 - 'INGRESO DE DATOS'!D53)=Tablas!A73,Tablas!D73,IF(('INGRESO DE DATOS'!H24 - 'INGRESO DE DATOS'!D53)=Tablas!A74,Tablas!D74,Tablas!D75))))*1.1494 -> 5265.4014 | I35: =(IF(('INGRESO DE DATOS'!H24 - 'INGRESO DE DATOS'!D53)<=0,0,IF(('INGRESO DE DATOS'!H24 - 'INGRESO DE DATOS'!D53)=Tablas!A73,Tablas!E73,IF(('INGRESO DE DATOS'!H24 - 'INGRESO DE DATOS'!D53)=Tablas!A74,Tablas!E74,Tablas!E75))))*1.1494 -> 4482.66 | J35: =(IF(('INGRESO DE DATOS'!H24 - 'INGRESO DE DATOS'!D53)<=0,0,IF(('INGRESO DE DATOS'!H24 - 'INGRESO DE DATOS'!D53)=Tablas!A73,Tablas!F73,IF(('INGRESO DE DATOS'!H24 - 'INGRESO DE DATOS'!D53)=Tablas!A74,Tablas!F74,Tablas!F75))))*1.1494 -> 3888.4202 | K35: =(IF(('INGRESO DE DATOS'!H24 - 'INGRESO DE DATOS'!D53)<=0,0,IF(('INGRESO DE DATOS'!H24 - 'INGRESO DE DATOS'!D53)=Tablas!A73,Tablas!G73,IF(('INGRESO DE DATOS'!H24 - 'INGRESO DE DATOS'!D53)=Tablas!A74,Tablas!G74,Tablas!G75))))*1.1494 -> 3014.8762
E36: Total de Prima neta | G36: =(SUM(G33:G35)) -> 30997.0192 | H36: =(SUM(H33:H35)) -> 27167.2184 | I36: =(SUM(I33:I35)) -> 22569.6184 | J36: =(SUM(J33:J35)) -> 19571.9832 | K36: =(SUM(K33:K35)) -> 15177.827
E37: Costo Administrativo Anual | G37: 86 | H37: 86 | I37: 86 | J37: 86 | K37: 86
E38: IVA (14.49%) | G38: =(G37)*0% -> 0 | H38: =(H37)*0% -> 0 | I38: =(I37)*0% -> 0 | J38: =(J37)*0% -> 0 | K38: =(K37)*0% -> 0
E40: TOTAL ANUAL | G40: =SUM(G36:G38) -> 31083.0192 | H40: =SUM(H36:H38) -> 27253.2184 | I40: =SUM(I36:I38) -> 22655.6184 | J40: =SUM(J36:J38) -> 19657.9832 | K40: =SUM(K36:K38) -> 15263.827
E41: Ahorros en tarifas de prima para niños | G41: =(IF(('INGRESO DE DATOS'!H24 - 'INGRESO DE DATOS'!D53) < 0, NA(), (IF('INGRESO DE DATOS'!H24<=0,0,IF('INGRESO DE DATOS'!H24=Tablas!A73,Tablas!C73,IF('INGRESO DE DATOS'!H24=Tablas!A74,Tablas!C74,Tablas!C75))) - IF(('INGRESO DE DATOS'!H24 - 'INGRESO DE DATOS'!D53)<=0,0,IF(('INGRESO DE DATOS'!H24 - 'INGRESO DE DATOS'!D53)=Tablas!A73,Tablas!C73,IF(('INGRESO DE DATOS'!H24 - 'INGRESO DE DATOS'!D53)=Tablas!A74,Tablas!C74,Tablas!C75))))))*1.1494 -> 2474.6582 | H41: =(IF(('INGRESO DE DATOS'!H24 - 'INGRESO DE DATOS'!D53) < 0, NA(), (IF('INGRESO DE DATOS'!H24<=0,0,IF('INGRESO DE DATOS'!H24=Tablas!A73,Tablas!D73,IF('INGRESO DE DATOS'!H24=Tablas!A74,Tablas!D74,Tablas!D75))) - IF(('INGRESO DE DATOS'!H24 - 'INGRESO DE DATOS'!D53)<=0,0,IF(('INGRESO DE DATOS'!H24 - 'INGRESO DE DATOS'!D53)=Tablas!A73,Tablas!D73,IF(('INGRESO DE DATOS'!H24 - 'INGRESO DE DATOS'!D53)=Tablas!A74,Tablas!D74,Tablas!D75))))))*1.1494 -> 2166.619 | I41: =(IF(('INGRESO DE DATOS'!H24 - 'INGRESO DE DATOS'!D53) < 0, NA(), (IF('INGRESO DE DATOS'!H24<=0,0,IF('INGRESO DE DATOS'!H24=Tablas!A73,Tablas!E73,IF('INGRESO DE DATOS'!H24=Tablas!A74,Tablas!E74,Tablas!E75))) - IF(('INGRESO DE DATOS'!H24 - 'INGRESO DE DATOS'!D53)<=0,0,IF(('INGRESO DE DATOS'!H24 - 'INGRESO DE DATOS'!D53)=Tablas!A73,Tablas!E73,IF(('INGRESO DE DATOS'!H24 - 'INGRESO DE DATOS'!D53)=Tablas!A74,Tablas!E74,Tablas!E75))))))*1.1494 -> 1844.787 | J41: =(IF(('INGRESO DE DATOS'!H24 - 'INGRESO DE DATOS'!D53) < 0, NA(), (IF('INGRESO DE DATOS'!H24<=0,0,IF('INGRESO DE DATOS'!H24=Tablas!A73,Tablas!F73,IF('INGRESO DE DATOS'!H24=Tablas!A74,Tablas!F74,Tablas!F75))) - IF(('INGRESO DE DATOS'!H24 - 'INGRESO DE DATOS'!D53)<=0,0,IF(('INGRESO DE DATOS'!H24 - 'INGRESO DE DATOS'!D53)=Tablas!A73,Tablas!F73,IF(('INGRESO DE DATOS'!H24 - 'INGRESO DE DATOS'!D53)=Tablas!A74,Tablas!F74,Tablas!F75))))))*1.1494 -> 1598.8154 | K41: =(IF(('INGRESO DE DATOS'!H24 - 'INGRESO DE DATOS'!D53) < 0, NA(), (IF('INGRESO DE DATOS'!H24<=0,0,IF('INGRESO DE DATOS'!H24=Tablas!A73,Tablas!G73,IF('INGRESO DE DATOS'!H24=Tablas!A74,Tablas!G74,Tablas!G75))) - IF(('INGRESO DE DATOS'!H24 - 'INGRESO DE DATOS'!D53)<=0,0,IF(('INGRESO DE DATOS'!H24 - 'INGRESO DE DATOS'!D53)=Tablas!A73,Tablas!G73,IF(('INGRESO DE DATOS'!H24 - 'INGRESO DE DATOS'!D53)=Tablas!A74,Tablas!G74,Tablas!G75))))))*1.1494 -> 1241.352
E43: Tarifas Semianuales
E44: Prima para Asegurado Titular | G44: =(VLOOKUP($I$22,Tablas!$A$455:$G$521,3,TRUE))*1.1494 -> 7367.447108 | H44: =(VLOOKUP($I$22,Tablas!$A$455:$G$521,4,TRUE))*1.1494 -> 6457.3292 | I44: =(VLOOKUP($I$22,Tablas!$A$455:$G$521,5,TRUE))*1.1494 -> 5314.503768 | J44: =(VLOOKUP($I$22,Tablas!$A$455:$G$521,6,TRUE))*1.1494 -> 4607.852648 | K44: =(VLOOKUP($I$22,Tablas!$A$455:$G$521,7,TRUE))*1.1494 -> 3573.461612
E45: Prima para conyuge | G45: =(IF($F$22=1,0,(VLOOKUP($I$24,Tablas!$A$455:$G$521,3,TRUE))))*1.1494 -> 5877.997118 | H45: =(IF($F$22=1,0,(VLOOKUP($I$24,Tablas!$A$455:$G$521,4,TRUE))))*1.1494 -> 5150.63381 | I45: =(IF($F$22=1,0,(VLOOKUP($I$24,Tablas!$A$455:$G$521,5,TRUE))))*1.1494 -> 4271.584184 | J45: =(IF($F$22=1,0,(VLOOKUP($I$24,Tablas!$A$455:$G$521,6,TRUE))))*1.1494 -> 3704.435742 | K45: =(IF($F$22=1,0,(VLOOKUP($I$24,Tablas!$A$455:$G$521,7,TRUE))))*1.1494 -> 2872.902312
E46: Prima para hijo (s) | G46: =G35*Tablas!$K4 -> 3182.97595 | H46: =H35*Tablas!$K4 -> 2790.662742 | I46: =I35*Tablas!$K4 -> 2375.8098 | J46: =J35*Tablas!$K4 -> 2060.862706 | K46: =K35*Tablas!$K4 -> 1597.884386
E47: Total de Prima neta | G47: =(SUM(G44:G46)) -> 16428.42018 | H47: =(SUM(H44:H46)) -> 14398.62575 | I47: =(SUM(I44:I46)) -> 11961.89775 | J47: =(SUM(J44:J46)) -> 10373.1511 | K47: =(SUM(K44:K46)) -> 8044.24831
E48: Costo Administrativo Anual | G48: 86 | H48: 86 | I48: 86 | J48: 86 | K48: 86
E49: IVA (14.49%) | G49: =(G48)*0% -> 0 | H49: =(H48)*0% -> 0 | I49: =(I48)*0% -> 0 | J49: =(J48)*0% -> 0 | K49: =(K48)*0% -> 0
E50: TOTAL de primera cuota | G50: =SUM(G47:G49) -> 16514.42018 | H50: =SUM(H47:H49) -> 14484.62575 | I50: =SUM(I47:I49) -> 12047.89775 | J50: =SUM(J47:J49) -> 10459.1511 | K50: =SUM(K47:K49) -> 8130.24831
E51: Costo de segunda cuota | G51: =G47+G49 -> 16428.42018 | H51: =H47+H49 -> 14398.62575 | I51: =I47+I49 -> 11961.89775 | J51: =J47+J49 -> 10373.1511 | K51: =K47+K49 -> 8044.24831
E52: TOTAL ANUAL | G52: =G50+G51 -> 32942.84035 | H52: =H50+H51 -> 28883.2515 | I52: 24009.7955 | J52: =J50+J51 -> 20832.30219 | K52: 16174.49662
E53: Ahorros en tarifas de prima para niños | G53: =G41*Tablas!$K4*2 -> 2623.137692 | H53: =H41*Tablas!$K4*2 -> 2296.61614 | I53: =I41*Tablas!$K4*2 -> 1955.47422 | J53: =J41*Tablas!$K4*2 -> 1694.744324 | K53: =K41*Tablas!$K4*2 -> 1315.83312
E55: Tarifas Trimestrales
E56: Prima para Asegurado Titular | G56: =(VLOOKUP($I$22,Tablas!$A$680:$G$746,3,TRUE))*1.1494 -> 3822.73199 | H56: =(VLOOKUP($I$22,Tablas!$A$680:$G$746,4,TRUE))*1.1494 -> 3350.501 | I56: =(VLOOKUP($I$22,Tablas!$A$680:$G$746,5,TRUE))*1.1494 -> 2757.52554 | J56: =(VLOOKUP($I$22,Tablas!$A$680:$G$746,6,TRUE))*1.1494 -> 2390.86694 | K56: =(VLOOKUP($I$22,Tablas!$A$680:$G$746,7,TRUE))*1.1494 -> 1854.15461
E57: Prima para conyuge | G57: =(IF($F$22=1,0,(VLOOKUP($I$24,Tablas!$A$680:$G$746,3,TRUE))))*1.1494 -> 3049.904165 | H57: =(IF($F$22=1,0,(VLOOKUP($I$24,Tablas!$A$680:$G$746,4,TRUE))))*1.1494 -> 2672.498675 | I57: =(IF($F$22=1,0,(VLOOKUP($I$24,Tablas!$A$680:$G$746,5,TRUE))))*1.1494 -> 2216.38802 | J57: =(IF($F$22=1,0,(VLOOKUP($I$24,Tablas!$A$680:$G$746,6,TRUE))))*1.1494 -> 1922.112885 | K57: =(IF($F$22=1,0,(VLOOKUP($I$24,Tablas!$A$680:$G$746,7,TRUE))))*1.1494 -> 1490.65686
E58: Prima para hijo (s) | G58: =G35*Tablas!$K3 -> 1651.544125 | H58: =H35*Tablas!$K3 -> 1447.985385 | I58: =I35*Tablas!$K3 -> 1232.7315 | J58: =J35*Tablas!$K3 -> 1069.315555 | K58: =K35*Tablas!$K3 -> 829.090955
E59: Total de Prima neta | G59: =(SUM(G56:G58)) -> 8524.18028 | H59: =(SUM(H56:H58)) -> 7470.98506 | I59: =(SUM(I56:I58)) -> 6206.64506 | J59: =(SUM(J56:J58)) -> 5382.29538 | K59: =(SUM(K56:K58)) -> 4173.902425
E60: Costo Administrativo Anual | G60: 86 | H60: 86 | I60: 86 | J60: 86 | K60: 86
E61: IVA (14.49%) | G61: =(G60)*0% -> 0 | H61: =(H60)*0% -> 0 | I61: =(I60)*0% -> 0 | J61: =(J60)*0% -> 0 | K61: =(K60)*0% -> 0
E63: TOTAL de primera cuota | G63: =SUM(G59:G61) -> 8610.18028 | H63: =SUM(H59:H61) -> 7556.98506 | I63: =SUM(I59:I61) -> 6292.64506 | J63: =SUM(J59:J61) -> 5468.29538 | K63: =SUM(K59:K61) -> 4259.902425
E64: Tres (3) cuotas adicionales, cada una de: | G64: =G59+G61 -> 8524.18028 | H64: =H59+H61 -> 7470.98506 | I64: =I59+I61 -> 6206.64506 | J64: =J59+J61 -> 5382.29538 | K64: =K59+K61 -> 4173.902425
E65: TOTAL ANUAL | G65: =G63+(G64*3) -> 34182.72112 | H65: =H63+(H64*3) -> 29969.94024 | I65: 24912.58024 | J65: =J63+(J64*3) -> 21615.18152 | K65: 16781.6097
E66: Ahorros en tarifas de prima para niños | G66: =G41*Tablas!$K3*4 -> 2722.12402 | H66: =H41*Tablas!$K3*4 -> 2383.2809 | I66: =I41*Tablas!$K3*4 -> 2029.2657 | J66: =J41*Tablas!$K3*4 -> 1758.69694 | K66: =K41*Tablas!$K3*4 -> 1365.4872
E69: Tarifas Mensuales
E70: Prima para Asegurado Titular | G70: =(VLOOKUP($I$22,Tablas!$A$80:$G$146,3,TRUE))*1.1494 -> 1297.412069 | H70: =(VLOOKUP($I$22,Tablas!$A$80:$G$146,4,TRUE))*1.1494 -> 1137.139733 | I70: =(VLOOKUP($I$22,Tablas!$A$80:$G$146,5,TRUE))*1.1494 -> 935.887456 | J70: =(VLOOKUP($I$22,Tablas!$A$80:$G$146,6,TRUE))*1.1494 -> 811.4457493 | K70: =(VLOOKUP($I$22,Tablas!$A$80:$G$146,7,TRUE))*1.1494 -> 629.2888373
E71: Prima para conyuge | G71: =(IF($F$22=1,0,(VLOOKUP($I$24,Tablas!$A$80:$G$146,3,TRUE))))*1.1494 -> 1035.118989 | H71: =(IF($F$22=1,0,(VLOOKUP($I$24,Tablas!$A$80:$G$146,4,TRUE))))*1.1494 -> 907.0298533 | I71: =(IF($F$22=1,0,(VLOOKUP($I$24,Tablas!$A$80:$G$146,5,TRUE))))*1.1494 -> 752.2286613 | J71: =(IF($F$22=1,0,(VLOOKUP($I$24,Tablas!$A$80:$G$146,6,TRUE))))*1.1494 -> 652.353464 | K71: =(IF($F$22=1,0,(VLOOKUP($I$24,Tablas!$A$80:$G$146,7,TRUE))))*1.1494 -> 505.919904
E72: Prima para hijo (s) | G72: =G35*Tablas!$K2 -> 560.5240667 | H72: =H35*Tablas!$K2 -> 491.437464 | I72: =I35*Tablas!$K2 -> 418.3816 | J72: =J35*Tablas!$K2 -> 362.9192187 | K72: =K35*Tablas!$K2 -> 281.3884453
E73: Total de Prima neta | G73: =(SUM(G70:G72)) -> 2893.055125 | H73: =(SUM(H70:H72)) -> 2535.607051 | I73: =(SUM(I70:I72)) -> 2106.497717 | J73: =(SUM(J70:J72)) -> 1826.718432 | K73: =(SUM(K70:K72)) -> 1416.597187
E74: Costo Administrativo Anual | G74: 86 | H74: 86 | I74: 86 | J74: 86 | K74: 86
E75: IVA (14.49%) | G75: =(G74)*0% -> 0 | H75: =(H74)*0% -> 0 | I75: =(I74)*0% -> 0 | J75: =(J74)*0% -> 0 | K75: =(K74)*0% -> 0
E77: TOTAL de primera cuota | G77: =SUM(G73:G75) -> 2979.055125 | H77: =SUM(H73:H75) -> 2621.607051 | I77: =SUM(I73:I75) -> 2192.497717 | J77: =SUM(J73:J75) -> 1912.718432 | K77: =SUM(K73:K75) -> 1502.597187
E78: Once (11) cuotas mensuales cada una de: | G78: =G73+G75 -> 2893.055125 | H78: =H73+H75 -> 2535.607051 | I78: =I73+I75 -> 2106.497717 | J78: =J73+J75 -> 1826.718432 | K78: =K73+K75 -> 1416.597187
E79: TOTAL ANUAL | G79: =G77+(G78*11) -> 34802.6615 | H79: =H77+(H78*11) -> 30513.28461 | I79: =I77+(I78*11) -> 25363.97261 | J79: =J77+(J78*11) -> 22006.62118 | K79: =K77+(K78*11) -> 17085.16624
E80: Ahorros en tarifas de prima para niños | G80: =G41*Tablas!$K2*12 -> 2771.617184 | H80: =H41*Tablas!$K2*12 -> 2426.61328 | I80: =I41*Tablas!$K2*12 -> 2066.16144 | J80: =J41*Tablas!$K2*12 -> 1790.673248 | K80: =K41*Tablas!$K2*12 -> 1390.31424
E83: Tarifas en US$ - Efectivas a partir del 1ro. de Enero de 2021
E84: Este presupuesto solamente tiene carácter informativo y en ningún momento expresa compromiso legal para suministrarle cobertura de seguro. La emisión de una póliza de seguro Bupa está sujeta a todas las evaluaciones de riesgo por parte de Bupa y a la recepción de todos los pagos de prima requeridos.

Sheet Global Premier Health Plan
A23: Global Premier Health Plan | D23: Nombre del Asegurado Titular | F23: =+'INGRESO DE DATOS'!$D$22 -> JOHN DOE
E24: Cotizado por | F24: =+'INGRESO DE DATOS'!$D$28 -> NOMBRE DE AGENTE
D26: Número de adultos en la póliza | F26: =+'INGRESO DE DATOS'!$D$24 -> 2 | H26: Edad del Asegurado Titular | I26: =+'INGRESO DE DATOS'!$D$26 -> 49
D28: Número de niños en la póliza | F28: =+'INGRESO DE DATOS'!$H$24 -> 3 | H28: Edad del/la conyuge | I28: =+'INGRESO DE DATOS'!$H$26 -> 39
F30: Fecha de la cotización : | G30: =NOW() -> 2020-12-16T16:14:06.940
H31: FALSE
E32: Deducibles | G32: PLAN 1 | H32: PLAN 2 | I32: PLAN 3 | J32: PLAN 4
E33: En el país de residencia | G33: 250 | H33: 2000 | I33: 5000 | J33: 10000
E34: Fuera del país de residencia | G34: 5000 | H34: 2000 | I34: 5000 | J34: 10000
E36: Tarifas Anuales
E37: Prima para Asegurado Titular | G37: =(VLOOKUP($I$26,Tablas!$A$155:$G$221,3,TRUE))*1.1494 -> 9135.4312 | H37: =(VLOOKUP($I$26,Tablas!$A$155:$G$221,4,TRUE))*1.1494 -> 8291.7716 | I37: =(VLOOKUP($I$26,Tablas!$A$155:$G$221,5,TRUE))*1.1494 -> 6057.338 | J37: =(VLOOKUP($I$26,Tablas!$A$155:$G$221,6,TRUE))*1.1494 -> 4505.648
E38: Prima para conyuge | G38: =(IF($F$26=1,0,(VLOOKUP($I$28,Tablas!$A$155:$G$221,3,TRUE))))*1.1494 -> 7288.3454 | H38: =(IF($F$26=1,0,(VLOOKUP($I$28,Tablas!$A$155:$G$221,4,TRUE))))*1.1494 -> 6614.797 | I38: =(IF($F$26=1,0,(VLOOKUP($I$28,Tablas!$A$155:$G$221,5,TRUE))))*1.1494 -> 4897.5934 | J38: =(IF($F$26=1,0,(VLOOKUP($I$28,Tablas!$A$155:$G$221,6,TRUE))))*1.1494 -> 3642.4486
E39: Prima para hijo (s) | G39: =(IF($F$28=0,0,(VLOOKUP($F$28,Tablas!$A$222:$G$224,3,TRUE))))*1.1494 -> 5572.2912 | H39: =(IF($F$28=0,0,(VLOOKUP($F$28,Tablas!$A$222:$G$224,4,TRUE))))*1.1494 -> 5057.36 | I39: =(IF($F$28=0,0,(VLOOKUP($F$28,Tablas!$A$222:$G$224,5,TRUE))))*1.1494 -> 3918.3046 | J39: =(IF($F$28=0,0,(VLOOKUP($F$28,Tablas!$A$222:$G$224,6,TRUE))))*1.1494 -> 2914.8784
E40: Total de Prima neta | G40: =(SUM(G37:G39)) -> 21996.0678 | H40: =(SUM(H37:H39)) -> 19963.9286 | I40: =(SUM(I37:I39)) -> 14873.236 | J40: =(SUM(J37:J39)) -> 11062.975
E41: Costo Administrativo Anual | G41: 86 | H41: 86 | I41: 86 | J41: 86
E42: IVA (14.49%) | G42: =(G41)*0% -> 0 | H42: =(H41)*0% -> 0 | I42: =(I41)*0% -> 0 | J42: =(J41)*0% -> 0
E44: TOTAL ANUAL | G44: =SUM(G40:G42) -> 22082.0678 | H44: =SUM(H40:H42) -> 20049.9286 | I44: =SUM(I40:I42) -> 14959.236 | J44: =SUM(J40:J42) -> 11148.975
E46: Tarifas Semianuales
E47: Prima para Asegurado Titular | G47: =(VLOOKUP($I$26,Tablas!$A$530:$G$596,3,TRUE))*1.1494 -> 4841.778536 | H47: =(VLOOKUP($I$26,Tablas!$A$530:$G$596,4,TRUE))*1.1494 -> 4394.638948 | I47: =(VLOOKUP($I$26,Tablas!$A$530:$G$596,5,TRUE))*1.1494 -> 3210.38914 | J47: =(VLOOKUP($I$26,Tablas!$A$530:$G$596,6,TRUE))*1.1494 -> 2387.99344
E48: Prima para conyuge | G48: =(IF($F$26=1,0,(VLOOKUP($I$28,Tablas!$A$530:$G$596,3,TRUE))))*1.1494 -> 3862.823062 | H48: =(IF($F$26=1,0,(VLOOKUP($I$28,Tablas!$A$530:$G$596,4,TRUE))))*1.1494 -> 3505.84241 | I48: =(IF($F$26=1,0,(VLOOKUP($I$28,Tablas!$A$530:$G$596,5,TRUE))))*1.1494 -> 2595.724502 | J48: =(IF($F$26=1,0,(VLOOKUP($I$28,Tablas!$A$530:$G$596,6,TRUE))))*1.1494 -> 1930.497758
E49: Prima para hijo (s) | G49: =(IF($F$28=0,0,(VLOOKUP($F$28,Tablas!$A$597:$G$599,3,TRUE))))*1.1494 -> 2953.314336 | H49: =(IF($F$28=0,0,(VLOOKUP($F$28,Tablas!$A$597:$G$599,4,TRUE))))*1.1494 -> 2680.4008 | I49: =(IF($F$28=0,0,(VLOOKUP($F$28,Tablas!$A$597:$G$599,5,TRUE))))*1.1494 -> 2076.701438 | J49: =(IF($F$28=0,0,(VLOOKUP($F$28,Tablas!$A$597:$G$599,6,TRUE))))*1.1494 -> 1544.885552
E50: Total de Prima neta | G50: =(SUM(G47:G49)) -> 11657.91593 | H50: =(SUM(H47:H49)) -> 10580.88216 | I50: =(SUM(I47:I49)) -> 7882.81508 | J50: =(SUM(J47:J49)) -> 5863.37675
E51: Costo Administrativo Anual | G51: 86 | H51: 86 | I51: 86 | J51: 86
E52: IVA (14.49%) | G52: =(G51)*0% -> 0 | H52: =(H51)*0% -> 0 | I52: =(I51)*0% -> 0 | J52: =(J51)*0% -> 0
E53: TOTAL de primera cuota | G53: =SUM(G50:G52) -> 11743.91593 | H53: =SUM(H50:H52) -> 10666.88216 | I53: =SUM(I50:I52) -> 7968.81508 | J53: =SUM(J50:J52) -> 5949.37675
E54: Costo de segunda cuota | G54: =G50+G52 -> 11657.91593 | H54: =H50+H52 -> 10580.88216 | I54: =I50+I52 -> 7882.81508 | J54: =J50+J52 -> 5863.37675
E55: TOTAL ANUAL | G55: =G53+G54 -> 23401.83187 | H55: =H53+H54 -> 21247.76432 | I55: 15851.63016 | J55: =J53+J54 -> 11812.7535
E57: Tarifas Trimestrales
E58: Prima para Asegurado Titular | G58: =(VLOOKUP($I$26,Tablas!$A$755:$G$821,3,TRUE))*1.1494 -> 2512.24358 | H58: =(VLOOKUP($I$26,Tablas!$A$755:$G$821,4,TRUE))*1.1494 -> 2280.23719 | I58: =(VLOOKUP($I$26,Tablas!$A$755:$G$821,5,TRUE))*1.1494 -> 1665.76795 | J58: =(VLOOKUP($I$26,Tablas!$A$755:$G$821,6,TRUE))*1.1494 -> 1239.0532
E59: Prima para conyuge | G59: =(IF($F$26=1,0,(VLOOKUP($I$28,Tablas!$A$755:$G$821,3,TRUE))))*1.1494 -> 2004.294985 | H59: =(IF($F$26=1,0,(VLOOKUP($I$28,Tablas!$A$755:$G$821,4,TRUE))))*1.1494 -> 1819.069175 | I59: =(IF($F$26=1,0,(VLOOKUP($I$28,Tablas!$A$755:$G$821,5,TRUE))))*1.1494 -> 1346.838185 | J59: =(IF($F$26=1,0,(VLOOKUP($I$28,Tablas!$A$755:$G$821,6,TRUE))))*1.1494 -> 1001.673365
E60: Prima para hijo (s) | G60: =(IF($F$28=0,0,(VLOOKUP($F$28,Tablas!$A$822:$G$824,3,TRUE))))*1.1494 -> 1532.38008 | H60: =(IF($F$28=0,0,(VLOOKUP($F$28,Tablas!$A$822:$G$824,4,TRUE))))*1.1494 -> 1390.774 | I60: =(IF($F$28=0,0,(VLOOKUP($F$28,Tablas!$A$822:$G$824,5,TRUE))))*1.1494 -> 1077.533765 | J60: =(IF($F$28=0,0,(VLOOKUP($F$28,Tablas!$A$822:$G$824,6,TRUE))))*1.1494 -> 801.59156
E61: Total de Prima neta | G61: =(SUM(G58:G60)) -> 6048.918645 | H61: =(SUM(H58:H60)) -> 5490.080365 | I61: =(SUM(I58:I60)) -> 4090.1399 | J61: =(SUM(J58:J60)) -> 3042.318125
E62: Costo Administrativo Anual | G62: 86 | H62: 86 | I62: 86 | J62: 86
E63: IVA (14.49%) | G63: =(G62)*0% -> 0 | H63: =(H62)*0% -> 0 | I63: =(I62)*0% -> 0 | J63: =(J62)*0% -> 0
E65: TOTAL de primera cuota | G65: =SUM(G61:G63) -> 6134.918645 | H65: =SUM(H61:H63) -> 5576.080365 | I65: =SUM(I61:I63) -> 4176.1399 | J65: =SUM(J61:J63) -> 3128.318125
E66: Tres (3) cuotas adicionales, cada una de: | G66: =G61+G63 -> 6048.918645 | H66: =H61+H63 -> 5490.080365 | I66: =I61+I63 -> 4090.1399 | J66: =J61+J63 -> 3042.318125
E67: TOTAL ANUAL | G67: =G65+(G66*3) -> 24281.67458 | H67: =H65+(H66*3) -> 22046.32146 | I67: 16446.5596 | J67: =J65+(J66*3) -> 12255.2725
E70: Tarifas Mensuales
E71: Prima para Asegurado Titular | G71: =(VLOOKUP($I$26,Tablas!$A$229:$G$295,3,TRUE))*1.1494 -> 852.6402453 | H71: =(VLOOKUP($I$26,Tablas!$A$229:$G$295,4,TRUE))*1.1494 -> 773.8986827 | I71: =(VLOOKUP($I$26,Tablas!$A$229:$G$295,5,TRUE))*1.1494 -> 565.3515467 | J71: =(VLOOKUP($I$26,Tablas!$A$229:$G$295,6,TRUE))*1.1494 -> 420.5271467
E72: Prima para conyuge | G72: =(IF($F$26=1,0,(VLOOKUP($I$28,Tablas!$A$229:$G$295,3,TRUE))))*1.1494 -> 680.2455707 | H72: =(IF($F$26=1,0,(VLOOKUP($I$28,Tablas!$A229:$G$295,4,TRUE))))*1.1494 -> 617.3810533 | I72: =(IF($F$26=1,0,(VLOOKUP($I$28,Tablas!$A$229:$G$295,5,TRUE))))*1.1494 -> 457.1087173 | J72: =(IF($F$26=1,0,(VLOOKUP($I$28,Tablas!$A$229:$G$295,6,TRUE))))*1.1494 -> 339.9618693
E73: Prima para hijo (s) | G73: =(IF($F$28=0,0,(VLOOKUP($F$28,Tablas!$A$296:$G$298,3,TRUE))))*1.1494 -> 520.080512 | H73: =(IF($F$28=0,0,(VLOOKUP($F$28,Tablas!$A$296:$G$298,4,TRUE))))*1.1494 -> 472.0202667 | I73: =(IF($F$28=0,0,(VLOOKUP($F$28,Tablas!$A$296:$G$298,5,TRUE))))*1.1494 -> 365.7084293 | J73: =(IF($F$28=0,0,(VLOOKUP($F$28,Tablas!$A$296:$G$298,6,TRUE))))*1.1494 -> 272.0553173
E74: Total de Prima neta | G74: =SUM(G71:G73) -> 2052.966328 | H74: =SUM(H71:H73) -> 1863.300003 | I74: =SUM(I71:I73) -> 1388.168693 | J74: =SUM(J71:J73) -> 1032.544333
E75: Costo Administrativo Anual | G75: 86 | H75: 86 | I75: 86 | J75: 86
E76: IVA (14.49%) | G76: =(G75)*0% -> 0 | H76: =(H75)*0% -> 0 | I76: =(I75)*0% -> 0 | J76: =(J75)*0% -> 0
E78: TOTAL de primera cuota | G78: =SUM(G74:G76) -> 2138.966328 | H78: =SUM(H74:H76) -> 1949.300003 | I78: =SUM(I74:I76) -> 1474.168693 | J78: =SUM(J74:J76) -> 1118.544333
E79: Once (11) cuotas mensuales cada una de: | G79: =G74+G76 -> 2052.966328 | H79: =H74+H76 -> 1863.300003 | I79: =I74+I76 -> 1388.168693 | J79: =J74+J76 -> 1032.544333
E80: TOTAL ANUAL | G80: =G78+(G79*11) -> 24721.59594 | H80: =H78+(H79*11) -> 22445.60003 | I80: =I78+(I79*11) -> 16744.02432 | J80: =J78+(J79*11) -> 12476.532
E83: Tarifas en US$ - Efectivas a partir del 1ro. de Enero de 2021
E84: Este presupuesto solamente tiene carácter informativo y en ningún momento expresa compromiso legal para suministrarle cobertura de seguro. La emisión de una póliza de seguro Bupa está sujeta a todas las evaluaciones de riesgo por parte de Bupa y a la recepción de todos los pagos de prima requeridos.

Sheet Global Select Health Plan
D23: Nombre del Asegurado Titular | F23: =+'INGRESO DE DATOS'!$D$22 -> JOHN DOE
E24: Cotizado por | F24: =+'INGRESO DE DATOS'!$D$28 -> NOMBRE DE AGENTE
A26: Global Select Health Plan | D26: Número de adultos en la póliza | F26: =+'INGRESO DE DATOS'!$D$24 -> 2 | H26: Edad del Asegurado Titular | I26: =+'INGRESO DE DATOS'!$D$26 -> 49
H28: Edad del/la conyuge | I28: =+'INGRESO DE DATOS'!$H$26 -> 39
D29: Número de niños en la póliza | F29: =+'INGRESO DE DATOS'!$H$24 -> 3
F31: Fecha de la cotización: | G31: =NOW() -> 2020-12-16T16:14:06.940
H32: FALSE
E33: Deducibles | G33: PLAN 1 | H33: PLAN 2 | I33: PLAN 3 | J33: PLAN 4
E34: En el país de residencia | G34: 250 | H34: 2000 | I34: 5000 | J34: 10000
E35: Fuera del país de residencia | G35: 5000 | H35: 2000 | I35: 5000 | J35: 10000
E37: Tarifas Anuales
E38: Prima para Asegurado Titular | G38: =(VLOOKUP($I$26,Tablas!$A$305:$G$371,3,TRUE))*1.1494 -> 6323.9988 | H38: =(VLOOKUP($I$26,Tablas!$A$305:$G$371,4,TRUE))*1.1494 -> 6066.5332 | I38: =(VLOOKUP($I$26,Tablas!$A$305:$G$371,5,TRUE))*1.1494 -> 4440.1322 | J38: =(VLOOKUP($I$26,Tablas!$A$305:$G$371,6,TRUE))*1.1494 -> 3303.3756
E39: Prima para conyuge | G39: =(IF($F$26=1,0,(VLOOKUP($I$28,Tablas!$A$305:$G$371,3,TRUE))))*1.1494 -> 4926.3284 | H39: =(IF($F$26=1,0,(VLOOKUP($I$28,Tablas!$A$305:$G$371,4,TRUE))))*1.1494 -> 4726.3328 | I39: =(IF($F$26=1,0,(VLOOKUP($I$28,Tablas!$A$305:$G$371,5,TRUE))))*1.1494 -> 3506.8194 | J39: =(IF($F$26=1,0,(VLOOKUP($I$28,Tablas!$A$305:$G$371,6,TRUE))))*1.1494 -> 2610.2874
E40: Prima para hijo (s) | G40: =(IF($F$29=0,0,(VLOOKUP($F$29,Tablas!$A$372:$G$374,3,TRUE))))*1.1494 -> 4002.2108 | H40: =(IF($F$29=0,0,(VLOOKUP($F$29,Tablas!$A$372:$G$374,4,TRUE))))*1.1494 -> 3838.996 | I40: =(IF($F$29=0,0,(VLOOKUP($F$29,Tablas!$A$372:$G$374,5,TRUE))))*1.1494 -> 2994.187 | J40: =(IF($F$29=0,0,(VLOOKUP($F$29,Tablas!$A$372:$G$374,6,TRUE))))*1.1494 -> 2227.5372
E41: Total de Prima neta | G41: =(SUM(G38:G40)) -> 15252.538 | H41: =(SUM(H38:H40)) -> 14631.862 | I41: =(SUM(I38:I40)) -> 10941.1386 | J41: =(SUM(J38:J40)) -> 8141.2002
E42: Costo Administrativo Anual | G42: 86 | H42: 86 | I42: 86 | J42: 86
E43: IVA (14.49%) | G43: =(G42)*0% -> 0 | H43: =(H42)*0% -> 0 | I43: =(I42)*0% -> 0 | J43: =(J42)*0% -> 0
E45: TOTAL ANUAL | G45: =SUM(G41:G43) -> 15338.538 | H45: =SUM(H41:H43) -> 14717.862 | I45: =SUM(I41:I43) -> 11027.1386 | J45: =SUM(J41:J43) -> 8227.2002
E47: Tarifas Semianuales
E48: Prima para Asegurado Titular | G48: =(VLOOKUP($I$26,Tablas!$A$605:$G$671,3,TRUE))*1.1494 -> 3351.719364 | H48: =(VLOOKUP($I$26,Tablas!$A$605:$G$671,4,TRUE))*1.1494 -> 3215.262596 | I48: =(VLOOKUP($I$26,Tablas!$A$605:$G$671,5,TRUE))*1.1494 -> 2353.270066 | J48: =(VLOOKUP($I$26,Tablas!$A$605:$G$671,6,TRUE))*1.1494 -> 1750.789068
E49: Prima para conyuge | G49: =(IF($F$26=1,0,(VLOOKUP($I$28,Tablas!$A$605:$G$671,3,TRUE))))*1.1494 -> 2610.954052 | H49: =(IF($F$26=1,0,(VLOOKUP($I$28,Tablas!$A$605:$G$671,4,TRUE))))*1.1494 -> 2504.956384 | I49: =(IF($F$26=1,0,(VLOOKUP($I$28,Tablas!$A$605:$G$671,5,TRUE))))*1.1494 -> 1858.614282 | J49: =(IF($F$26=1,0,(VLOOKUP($I$28,Tablas!$A$605:$G$671,6,TRUE))))*1.1494 -> 1383.452322
E50: Prima para hijo (s) | G50: =(IF($F$29=0,0,(VLOOKUP($F$29,Tablas!$A$672:$G$674,3,TRUE))))*1.1494 -> 2121.171724 | H50: =(IF($F$29=0,0,(VLOOKUP($F$29,Tablas!$A$672:$G$674,4,TRUE))))*1.1494 -> 2034.66788 | I50: =(IF($F$29=0,0,(VLOOKUP($F$29,Tablas!$A$672:$G$674,5,TRUE))))*1.1494 -> 1586.91911 | J50: =(IF($F$29=0,0,(VLOOKUP($F$29,Tablas!$A$672:$G$674,6,TRUE))))*1.1494 -> 1180.594716
E51: Total de Prima neta | G51: =(SUM(G48:G50)) -> 8083.84514 | H51: =(SUM(H48:H50)) -> 7754.88686 | I51: =(SUM(I48:I50)) -> 5798.803458 | J51: =(SUM(J48:J50)) -> 4314.836106
E52: Costo Administrativo Anual | G52: 86 | H52: 86 | I52: 86 | J52: 86
E53: IVA (14.49%) | G53: =(G52)*0% -> 0 | H53: =(H52)*0% -> 0 | I53: =(I52)*0% -> 0
E54: TOTAL de primera cuota | G54: =SUM(G51:G53) -> 8169.84514 | H54: =SUM(H51:H53) -> 7840.88686 | I54: =SUM(I51:I53) -> 5884.803458 | J54: =SUM(J51:J53) -> 4400.836106
E55: Costo de segunda cuota | G55: =G51+G53 -> 8083.84514 | H55: =H51+H53 -> 7754.88686 | I55: =I51+I53 -> 5798.803458 | J55: =J51+J53 -> 4314.836106
E56: TOTAL ANUAL | G56: =G54+G55 -> 16253.69028 | H56: =H54+H55 -> 15595.77372 | I56: 11683.60692 | J56: 8715.672212
E58: Tarifas Trimestrales
E59: Prima para Asegurado Titular | G59: =(VLOOKUP($I$26,Tablas!$A$830:$G$896,3,TRUE))*1.1494 -> 1739.09967 | H59: =(VLOOKUP($I$26,Tablas!$A$830:$G$896,4,TRUE))*1.1494 -> 1668.29663 | I59: =(VLOOKUP($I$26,Tablas!$A$830:$G$896,5,TRUE))*1.1494 -> 1221.036355 | J59: =(VLOOKUP($I$26,Tablas!$A$830:$G$896,6,TRUE))*1.1494 -> 908.42829
E60: Prima para conyuge | G60: =(IF($F$26=1,0,(VLOOKUP($I$28,Tablas!$A$830:$G$896,3,TRUE))))*1.1494 -> 1354.74031 | H60: =(IF($F$26=1,0,(VLOOKUP($I$28,Tablas!$A$830:$G$896,4,TRUE))))*1.1494 -> 1299.74152 | I60: =(IF($F$26=1,0,(VLOOKUP($I$28,Tablas!$A$830:$G$896,5,TRUE))))*1.1494 -> 964.375335 | J60: =(IF($F$26=1,0,(VLOOKUP($I$28,Tablas!$A$830:$G$896,6,TRUE))))*1.1494 -> 717.829035
E61: Prima para hijo (s) | G61: =(IF($F$29=0,0,(VLOOKUP($F$29,Tablas!$A$897:$G$899,3,TRUE))))*1.1494 -> 1100.60797 | H61: =(IF($F$29=0,0,(VLOOKUP($F$29,Tablas!$A$897:$G$899,4,TRUE))))*1.1494 -> 1055.7239 | I61: =(IF($F$29=0,0,(VLOOKUP($F$29,Tablas!$A$897:$G$899,5,TRUE))))*1.1494 -> 823.401425 | J61: =(IF($F$29=0,0,(VLOOKUP($F$29,Tablas!$A$897:$G$899,6,TRUE))))*1.1494 -> 612.57273
E62: Total de Prima neta | G62: =(SUM(G59:G61)) -> 4194.44795 | H62: =(SUM(H59:H61)) -> 4023.76205 | I62: =(SUM(I59:I61)) -> 3008.813115 | J62: =(SUM(J59:J61)) -> 2238.830055
E63: Costo Administrativo Anual | G63: 86 | H63: 86 | I63: 86 | J63: 86
E64: IVA (14.49%) | G64: =(G63)*0% -> 0 | H64: =(H63)*0% -> 0 | I64: =(I63)*0% -> 0 | J64: =(J63)*0% -> 0
E66: TOTAL de primera cuota | G66: =SUM(G62:G64) -> 4280.44795 | H66: =SUM(H62:H64) -> 4109.76205 | I66: =SUM(I62:I64) -> 3094.813115 | J66: =SUM(J62:J64) -> 2324.830055
E67: Tres (3) cuotas adicionales, cada una de: | G67: =G62+G64 -> 4194.44795 | H67: =H62+H64 -> 4023.76205 | I67: =I62+I64 -> 3008.813115 | J67: =J62+J64 -> 2238.830055
E68: TOTAL ANUAL | G68: =G66+(G67*3) -> 16863.7918 | H68: =H66+(H67*3) -> 16181.0482 | I68: 12121.25246 | J68: =J66+(J67*3) -> 9041.32022
E71: Tarifas Mensuales
E72: Prima para Asegurado Titular | G72: =(VLOOKUP($I$26,Tablas!$A$379:$G$445,3,TRUE))*1.1494 -> 590.239888 | H72: =(VLOOKUP($I$26,Tablas!$A$379:$G$445,4,TRUE))*1.1494 -> 566.2097653 | I72: =(VLOOKUP($I$26,Tablas!$A$379:$G$445,5,TRUE))*1.1494 -> 414.4123387 | J72: =(VLOOKUP($I$26,Tablas!$A$379:$G$445,6,TRUE))*1.1494 -> 308.315056
E73: Prima para conyuge | G73: =(IF($F$26=1,0,(VLOOKUP($I$28,Tablas!$A$379:$G$445,3,TRUE))))*1.1494 -> 459.7906507 | H73: =(IF($F$26=1,0,(VLOOKUP($I$28,Tablas!$A$379:$G$445,4,TRUE))))*1.1494 -> 441.1243947 | I73: =(IF($F$26=1,0,(VLOOKUP($I$28,Tablas!$A$379:$G$445,5,TRUE))))*1.1494 -> 327.303144 | J73: =(IF($F$26=1,0,(VLOOKUP($I$28,Tablas!$A$379:$G$445,6,TRUE))))*1.1494 -> 243.626824
E74: Prima para hijo (s) | G74: =(IF($F$29=0,0,(VLOOKUP($F$29,Tablas!$A$446:$G$448,3,TRUE))))*1.1494 -> 373.5396747 | H74: =(IF($F$29=0,0,(VLOOKUP($F$29,Tablas!$A$446:$G$448,4,TRUE))))*1.1494 -> 358.3062933 | I74: =(IF($F$29=0,0,(VLOOKUP($F$29,Tablas!$A$446:$G$448,5,TRUE))))*1.1494 -> 279.4574533 | J74: =(IF($F$29=0,0,(VLOOKUP($F$29,Tablas!$A$446:$G$448,6,TRUE))))*1.1494 -> 207.903472
E75: Total de Prima neta | G75: =(SUM(G72:G74)) -> 1423.570213 | H75: =(SUM(H72:H74)) -> 1365.640453 | I75: =(SUM(I72:I74)) -> 1021.172936 | J75: =(SUM(J72:J74)) -> 759.845352
E76: Costo Administrativo Anual | G76: 86 | H76: 86 | I76: 86 | J76: 86
E77: IVA (14.49%) | G77: =(G76)*0% -> 0 | H77: =(H76)*0% -> 0 | I77: =(I76)*0% -> 0 | J77: =(J76)*0% -> 0
E79: TOTAL de primera cuota | G79: =SUM(G75:G77) -> 1509.570213 | H79: =SUM(H75:H77) -> 1451.640453 | I79: =SUM(I75:I77) -> 1107.172936 | J79: =SUM(J75:J77) -> 845.845352
E80: Once (11) cuotas mensuales cada una de: | G80: =G75+G77 -> 1423.570213 | H80: =H75+H77 -> 1365.640453 | I80: =I75+I77 -> 1021.172936 | J80: =J75+J77 -> 759.845352
E81: TOTAL ANUAL | G81: =G79+(G80*11) -> 17168.84256 | H81: =H79+(H80*11) -> 16473.68544 | I81: =I79+(I80*11) -> 12340.07523 | J81: =J79+(J80*11) -> 9204.144224
E83: Tarifas en US$ - Efectivas a partir del 1ro. de Enero de 2021
E84: Este presupuesto solamente tiene carácter informativo y en ningún momento expresa compromiso legal para suministrarle cobertura de seguro. La emisión de una póliza de seguro Bupa está sujeta a todas las evaluaciones de riesgo por parte de Bupa y a la recepción de todos los pagos de prima requeridos.

Sheet Global Major Medical Health Pl
A23: Global Major Medical Health Plan | D23: Nombre del Asegurado Titular | F23: =+'INGRESO DE DATOS'!$D$22 -> JOHN DOE
E24: Cotizado Por | F24: =+'INGRESO DE DATOS'!$D$28 -> NOMBRE DE AGENTE
D26: Número de adultos en la póliza | F26: =+'INGRESO DE DATOS'!$D$24 -> 2 | H26: Edad del Asegurado Titular | I26: =+'INGRESO DE DATOS'!$D$26 -> 49
D28: Número de niños en la póliza | F28: =+'INGRESO DE DATOS'!$H$24 -> 3 | H28: Edad del/la conyuge | I28: =+'INGRESO DE DATOS'!$H$26 -> 39
F30: Fecha de la cotización: | G30: =NOW() -> 2020-12-16T16:14:06.940
H31: FALSE
E32: Deducibles | G32: PLAN 1 | H32: PLAN 2
E33: En el país de residencia | G33: 10000 | H33: 20000
E34: Fuera del país de residencia | G34: 10000 | H34: 20000
E36: Tarifas Anuales
E37: Prima para Asegurado Titular | G37: =(VLOOKUP($I$26,Tablas!$A$1129:$G$1195,3,TRUE))*1.1494 -> 3914.8564 | H37: =(VLOOKUP($I$26,Tablas!$A$1129:$G$1195,4,TRUE))*1.1494 -> 2975.7966
E38: Prima para conyuge | G38: =(IF($F$26=1,0,(VLOOKUP($I$28,Tablas!$A$1129:$G$1195,3,TRUE))))*1.1494 -> 3120.621 | H38: =(IF($F$26=1,0,(VLOOKUP($I$28,Tablas!$A$1129:$G$1195,4,TRUE))))*1.1494 -> 2370.0628
E39: Prima para hijo (s) | G39: =(IF($F$28=0,0,(VLOOKUP($F$28,Tablas!$A$1196:$G$1198,3,TRUE))))*1.1494 -> 2370.0628 | H39: =(IF($F$28=0,0,(VLOOKUP($F$28,Tablas!$A$1196:$G$1198,4,TRUE))))*1.1494 -> 1859.7292
E40: Total de Prima neta | G40: =(SUM(G37:G39)) -> 9405.5402 | H40: =(SUM(H37:H39)) -> 7205.5886
E41: Costo Administrativo Anual | G41: 86 | H41: 86
E42: IVA (14.49%) | G42: =(G41)*0% -> 0 | H42: =(H41)*0% -> 0
E44: TOTAL ANUAL | G44: =SUM(G40:G42) -> 9491.5402 | H44: =SUM(H40:H42) -> 7291.5886
E46: Tarifas Semianuales
E47: Prima para Asegurado Titular | G47: =(VLOOKUP($I$26,Tablas!$A$1353:$G$1419,3,TRUE))*1.1494 -> 2074.873892 | H47: =(VLOOKUP($I$26,Tablas!$A$1353:$G$1419,4,TRUE))*1.1494 -> 1577.172198
E48: Prima para conyuge | G48: =(IF($F$26=1,0,(VLOOKUP($I$28,Tablas!$A$1353:$G$1419,3,TRUE))))*1.1494 -> 1653.92913 | H48: =(IF($F$26=1,0,(VLOOKUP($I$28,Tablas!$A$1353:$G$1419,4,TRUE))))*1.1494 -> 1256.133284
E49: Prima para hijo (s) | G49: =(IF($F$28=0,0,(VLOOKUP($F$28,Tablas!$A$1420:$G$1422,3,TRUE))))*1.1494 -> 1256.133284 | H49: =(IF($F$28=0,0,(VLOOKUP($F$28,Tablas!$A$1420:$G$1422,4,TRUE))))*1.1494 -> 985.656476
E50: Total de Prima neta | G50: =(SUM(G47:G49)) -> 4984.936306 | H50: =(SUM(H47:H49)) -> 3818.961958
E51: Costo Administrativo Anual | G51: 86 | H51: 86
E52: IVA (14.49%) | G52: =(G51)*0% -> 0 | H52: =(H51)*0% -> 0
E53: TOTAL de primera cuota | G53: =SUM(G50:G52) -> 5070.936306 | H53: =SUM(H50:H52) -> 3904.961958
E54: Costo de segunda cuota | G54: =G50+G52 -> 4984.936306 | H54: =H50+H52 -> 3818.961958
E55: TOTAL ANUAL | G55: =G53+G54 -> 10055.87261 | H55: =H53+H54 -> 7723.923916
E57: Tarifas Trimestrales
E58: Prima para Asegurado Titular | G58: =(VLOOKUP($I$26,Tablas!$A$1278:$G$1344,3,TRUE))*1.1494 -> 1076.58551 | H58: =(VLOOKUP($I$26,Tablas!$A$1278:$G$1344,4,TRUE))*1.1494 -> 818.344065
E59: Prima para conyuge | G59: =(IF($F$26=1,0,(VLOOKUP($I$28,Tablas!$A$1278:$G$1344,3,TRUE))))*1.1494 -> 858.170775 | H59: =(IF($F$26=1,0,(VLOOKUP($I$28,Tablas!$A$1278:$G$1344,4,TRUE))))*1.1494 -> 651.76727
E60: Prima para hijo (s) | G60: =(IF($F$28=0,0,(VLOOKUP($F$28,Tablas!$A$1345:$G$1347,3,TRUE))))*1.1494 -> 651.76727 | H60: =(IF($F$28=0,0,(VLOOKUP($F$28,Tablas!$A$1345:$G$1347,4,TRUE))))*1.1494 -> 511.42553
E61: Total de Prima neta | G61: =(SUM(G58:G60)) -> 2586.523555 | H61: =(SUM(H58:H60)) -> 1981.536865
E62: Costo Administrativo Anual | G62: 86 | H62: 86
E63: IVA (14.49%) | G63: =(G62)*0% -> 0 | H63: =(H62)*0% -> 0
E65: TOTAL de primera cuota | G65: =SUM(G61:G63) -> 2672.523555 | H65: =SUM(H61:H63) -> 2067.536865
E66: Tres (3) cuotas adicionales, cada una de: | G66: =G61+G63 -> 2586.523555 | H66: =H61+H63 -> 1981.536865
E67: TOTAL ANUAL | G67: =G65+(G66*3) -> 10432.09422 | H67: =H65+(H66*3) -> 8012.14746
E69: Tarifas Mensuales
E70: Prima para Asegurado Titular | G70: =(VLOOKUP($I$26,Tablas!$A$1203:$G$1269,3,TRUE))*1.1494 -> 365.3865973 | H70: =(VLOOKUP($I$26,Tablas!$A$1203:$G$1269,4,TRUE))*1.1494 -> 277.741016
E71: Prima para conyuge | G71: =(IF($F$26=1,0,(VLOOKUP($I$28,Tablas!$A$1203:$G$1269,3,TRUE))))*1.1494 -> 291.25796 | H71: =(IF($F$26=1,0,(VLOOKUP($I$28,Tablas!$A$1203:$G$1269,4,TRUE))))*1.1494 -> 221.2058613
E72: Prima para hijo (s) | G72: =(IF($F$28=0,0,(VLOOKUP($F$28,Tablas!$A$1270:$G$1272,3,TRUE))))*1.1494 -> 221.2058613 | H72: =(IF($F$28=0,0,(VLOOKUP($F$28,Tablas!$A$1270:$G$1272,4,TRUE))))*1.1494 -> 173.5747253
E73: Total de Prima neta | G73: =(SUM(G70:G72)) -> 877.8504187 | H73: =(SUM(H70:H72)) -> 672.5216027
E74: Costo Administrativo Anual | G74: 86 | H74: 86
E75: IVA (14.49%) | G75: =(G74)*0% -> 0 | H75: =(H74)*0% -> 0
E77: TOTAL de primera cuota | G77: =SUM(G73:G75) -> 963.8504187 | H77: =SUM(H73:H75) -> 758.5216027
E78: Once (11) cuotas mensuales cada una de: | G78: =G73+G75 -> 877.8504187 | H78: =H73+H75 -> 672.5216027
E79: TOTAL ANUAL | G79: =G77+(G78*11) -> 10620.20502 | H79: =H77+(H78*11) -> 8156.259232
E81: Tarifas en US$ - Efectivas a partir del 1ro. de Enero de 2021
E82: Este presupuesto solamente tiene carácter informativo y en ningún momento expresa compromiso legal para suministrarle cobertura de seguro. La emisión de una póliza de seguro Bupa está sujeta a todas las evaluaciones de riesgo por parte de Bupa y a la recepción de todos los pagos de prima requeridos.

Sheet Resumen tarifas
A20: Cotización de Seguro Médico - Global Health Plans
A22: Nombre del Asegurado Titular | C22: =+'INGRESO DE DATOS'!$D$22 -> JOHN DOE
B23: Cotizado por | C23: =+'INGRESO DE DATOS'!$D$28 -> NOMBRE DE AGENTE
A25: Número de adultos en la póliza | C25: =+'INGRESO DE DATOS'!$D$24 -> 2 | E25: Edad del Asegurado Titular | G25: =+'INGRESO DE DATOS'!$D$26 -> 49
A28: Número de niños en la póliza | C28: =+'INGRESO DE DATOS'!$H$24 -> 3 | E28: Edad del/la cónyuge | G28: =+'INGRESO DE DATOS'!$H$26 -> 39
C31: Fecha de la Cotización: | D31: =NOW() -> 2020-12-16T16:14:06.940
A33: Bupa Global Ultimtate Health Plan
A34: Deducibles | C34: PLAN 1 | D34: PLAN 2
A35: En el país de residencia | C35: 0 | D35: 1000
A36: Fuera del país de residencia | C36: 0 | D36: 1000
C37: Tarifas Anuales
C38: ='Global Ultimate Health Plan'!G41 -> 66745.453 | D38: ='Global Ultimate Health Plan'!H41 -> 43095.3986
C39: Tarifas Semi-anuales
C40: ='Global Ultimate Health Plan'!G52 -> 35329.51009 | D40: ='Global Ultimate Health Plan'!H52 -> 22794.98126
C41: Tarifas Trimestrales
C42: ='Global Ultimate Health Plan'!G65 -> 18331.34958 | D42: ='Global Ultimate Health Plan'!H65 -> 11827.58461
C43: Tarifas Mensuales
C44: ='Global Ultimate Health Plan'!G80 -> 6221.548947 | D44: ='Global Ultimate Health Plan'!H80 -> 4014.210536
A45: Ahorros en tarifas de prima para niños* | C45: ='Global Ultimate Health Plan'!G42 -> 11415.8408 | D45: ='Global Ultimate Health Plan'!H42 -> 7367.654
A47: Bupa Global Elite Health Plan
A48: Deducibles | D48: PLAN 1 | E48: PLAN 2 | F48: PLAN 3 | G48: PLAN 4 | H48: PLAN 5
A49: En el país de residencia | D49: 250 | E49: 2000 | F49: 3500 | G49: 5000 | H49: 10000
A50: Fuera del país de residencia | D50: 5000 | E50: 2000 | F50: 3500 | G50: 5000 | H50: 10000
D51: Tarifas Anuales
D52: =+'Global Elite Health Plan'!G40 -> 31083.0192 | E52: =+'Global Elite Health Plan'!H40 -> 27253.2184 | F52: =+'Global Elite Health Plan'!I40 -> 22655.6184 | G52: =+'Global Elite Health Plan'!J40 -> 19657.9832 | H52: =+'Global Elite Health Plan'!K40 -> 15263.827
D53: Tarifas Semi-anuales
D54: =+'Global Elite Health Plan'!G51 -> 16428.42018 | E54: =+'Global Elite Health Plan'!H51 -> 14398.62575 | F54: =+'Global Elite Health Plan'!I51 -> 11961.89775 | G54: =+'Global Elite Health Plan'!J51 -> 10373.1511 | H54: =+'Global Elite Health Plan'!K51 -> 8044.24831
D55: Tarifas Trimestrales
D56: =+'Global Elite Health Plan'!G64 -> 8524.18028 | E56: =+'Global Elite Health Plan'!H64 -> 7470.98506 | F56: =+'Global Elite Health Plan'!I64 -> 6206.64506 | G56: =+'Global Elite Health Plan'!J64 -> 5382.29538 | H56: =+'Global Elite Health Plan'!K64 -> 4173.902425
D57: Tarifas Mensuales
D58: =+'Global Elite Health Plan'!G78 -> 2893.055125 | E58: =+'Global Elite Health Plan'!H78 -> 2535.607051 | F58: =+'Global Elite Health Plan'!I78 -> 2106.497717 | G58: =+'Global Elite Health Plan'!J78 -> 1826.718432 | H58: =+'Global Elite Health Plan'!K78 -> 1416.597187
A59: Ahorros en tarifas de prima para niños* | D59: =+'Global Elite Health Plan'!G41 -> 2474.6582 | E59: =+'Global Elite Health Plan'!H41 -> 2166.619 | F59: =+'Global Elite Health Plan'!I41 -> 1844.787 | G59: =+'Global Elite Health Plan'!J41 -> 1598.8154 | H59: =+'Global Elite Health Plan'!K41 -> 1241.352
A61: Bupa Global Premier Health Plan
A62: Deducibles | E62: PLAN 1 | F62: PLAN 2 | G62: PLAN 3 | H62: PLAN 4
A63: En el país de residencia | E63: 250 | F63: 2000 | G63: 5000 | H63: 10000
A64: Fuera del país de residencia | E64: 5000 | F64: 2000 | G64: 5000 | H64: 10000
E65: Tarifas Anuales
E66: =+'Global Premier Health Plan'!G44 -> 22082.0678 | F66: =+'Global Premier Health Plan'!H44 -> 20049.9286 | G66: =+'Global Premier Health Plan'!I44 -> 14959.236 | H66: =+'Global Premier Health Plan'!J44 -> 11148.975
E67: Tarifas Semi-anuales
E68: =+'Global Premier Health Plan'!G54 -> 11657.91593 | F68: =+'Global Premier Health Plan'!H54 -> 10580.88216 | G68: =+'Global Premier Health Plan'!I54 -> 7882.81508 | H68: =+'Global Premier Health Plan'!J54 -> 5863.37675
E69: Tarifas Trimestrales
E70: =+'Global Premier Health Plan'!G66 -> 6048.918645 | F70: =+'Global Premier Health Plan'!H66 -> 5490.080365 | G70: =+'Global Premier Health Plan'!I66 -> 4090.1399 | H70: =+'Global Premier Health Plan'!J66 -> 3042.318125
E71: Tarifas Mensuales
E72: =+'Global Premier Health Plan'!G79 -> 2052.966328 | F72: =+'Global Premier Health Plan'!H79 -> 1863.300003 | G72: =+'Global Premier Health Plan'!I79 -> 1388.168693 | H72: =+'Global Premier Health Plan'!J79 -> 1032.544333
A74: Bupa Global Select Health Plan
A75: Deducibles | E75: PLAN 1 | F75: PLAN 2 | G75: PLAN 3 | H75: PLAN 4
A76: En el país de residencia | E76: 250 | F76: 2000 | G76: 5000 | H76: 10000
A77: Fuera del país de residencia | E77: 5000 | F77: 2000 | G77: 5000 | H77: 10000
E78: Tarifas Anuales
E79: =+'Global Select Health Plan'!G45 -> 15338.538 | F79: =+'Global Select Health Plan'!H45 -> 14717.862 | G79: =+'Global Select Health Plan'!I45 -> 11027.1386 | H79: =+'Global Select Health Plan'!J45 -> 8227.2002
E80: Tarifas Semi-anuales
E81: =+'Global Select Health Plan'!G55 -> 8083.84514 | F81: =+'Global Select Health Plan'!H55 -> 7754.88686 | G81: =+'Global Select Health Plan'!I55 -> 5798.803458 | H81: =+'Global Select Health Plan'!J55 -> 4314.836106
E82: Tarifas Trimestrales
E83: =+'Global Select Health Plan'!G67 -> 4194.44795 | F83: =+'Global Select Health Plan'!H67 -> 4023.76205 | G83: =+'Global Select Health Plan'!I67 -> 3008.813115 | H83: =+'Global Select Health Plan'!J67 -> 2238.830055
E84: Tarifas Mensuales
E85: =+'Global Select Health Plan'!G80 -> 1423.570213 | F85: =+'Global Select Health Plan'!H80 -> 1365.640453 | G85: =+'Global Select Health Plan'!I80 -> 1021.172936 | H85: =+'Global Select Health Plan'!J80 -> 759.845352
A87: Bupa Global Major Medical Health Plan
A88: Deducibles | C88: PLAN 1 | D88: PLAN 2
A89: En el país de residencia | C89: 10000 | D89: 20000
A90: Fuera del país de residencia | C90: 10000 | D90: 20000
C91: Tarifas Anuales
C92: ='Global Major Medical Health Pl'!G44 -> 9491.5402 | D92: ='Global Major Medical Health Pl'!H44 -> 7291.5886
C93: Tarifas Semi-anuales
C94: ='Global Major Medical Health Pl'!G54 -> 4984.936306 | D94: ='Global Major Medical Health Pl'!H54 -> 3818.961958
C95: Tarifas Trimestrales
C96: ='Global Major Medical Health Pl'!G66 -> 2586.523555 | D96: ='Global Major Medical Health Pl'!H66 -> 1981.536865
C97: Tarifas Mensuales
C98: ='Global Major Medical Health Pl'!G78 -> 877.8504187 | D98: ='Global Major Medical Health Pl'!H78 -> 672.5216027
A100: Notas:
A101: Primas anuales incluyen US$86.00 por Costo Administrativo Anual
A102: Costo administrativo anual incluido en el primer pago de los pagos semestrales, trimestrales y mensuales
A103: *Basado en un modo de pago anual
A105: Tarifas en US$ - Efectivas a partir del 1ro. de Enero de 2021
A106: Este presupuesto solamente tiene carácter informativo y en ningún momento expresa compromiso legal para suministrarle cobertura de seguro. La emisión de una póliza de seguro Bupa está sujeta a todas las evaluaciones de riesgo por parte de Bupa y a la recepción de todos los pagos de prima requeridos.

Sheet Tablas (hidden)
A2: BUPA GLOBAL ELITE | I2: FACTOR MENSUAL: | K2: 0.09333333333
A3: TARIFAS ANUALES | I3: FACTOR TRIMESTRAL: | K3: 0.275
A4: EDAD | I4: FACTOR SEMIANUAL: | K4: 0.53
C5: 250 | D5: 2000 | E5: 3500 | F5: 5000 | G5: 10000
A6: 18 | C6: 7275 | D6: 6375 | E6: 5390 | F6: 4676 | G6: 3626 | I6: TRUE | J6: TRUE | K6: TRUE | L6: TRUE | M6: TRUE
A7: 19 | C7: 7275 | D7: 6375 | E7: 5390 | F7: 4676 | G7: 3626
A8: 20 | C8: 7275 | D8: 6375 | E8: 5390 | F8: 4676 | G8: 3626
A9: 21 | C9: 7275 | D9: 6375 | E9: 5390 | F9: 4676 | G9: 3626
A10: 22 | C10: 7275 | D10: 6375 | E10: 5390 | F10: 4676 | G10: 3626
A11: 23 | C11: 7275 | D11: 6375 | E11: 5390 | F11: 4676 | G11: 3626
A12: 24 | C12: 7275 | D12: 6375 | E12: 5390 | F12: 4676 | G12: 3626
A13: 25 | C13: 7772 | D13: 6812 | E13: 5725 | F13: 4964 | G13: 3851 | I13: TRUE | J13: TRUE | K13: TRUE | L13: TRUE | M13: TRUE
A14: 26 | C14: 7772 | D14: 6812 | E14: 5725 | F14: 4964 | G14: 3851
A15: 27 | C15: 7772 | D15: 6812 | E15: 5725 | F15: 4964 | G15: 3851
A16: 28 | C16: 7772 | D16: 6812 | E16: 5725 | F16: 4964 | G16: 3851
A17: 29 | C17: 7772 | D17: 6812 | E17: 5725 | F17: 4964 | G17: 3851
A18: 30 | C18: 8643 | D18: 7576 | E18: 6319 | F18: 5478 | G18: 4249 | I18: TRUE | J18: TRUE | K18: TRUE | L18: TRUE | M18: TRUE
A19: 31 | C19: 8643 | D19: 7576 | E19: 6319 | F19: 5478 | G19: 4249
A20: 32 | C20: 8643 | D20: 7576 | E20: 6319 | F20: 5478 | G20: 4249
A21: 33 | C21: 8643 | D21: 7576 | E21: 6319 | F21: 5478 | G21: 4249
A22: 34 | C22: 8643 | D22: 7576 | E22: 6319 | F22: 5478 | G22: 4249
A23: 35 | C23: 9649 | D23: 8455 | E23: 7012 | F23: 6081 | G23: 4716 | I23: TRUE | J23: TRUE | K23: TRUE | L23: TRUE | M23: TRUE
A24: 36 | C24: 9649 | D24: 8455 | E24: 7012 | F24: 6081 | G24: 4716
A25: 37 | C25: 9649 | D25: 8455 | E25: 7012 | F25: 6081 | G25: 4716
A26: 38 | C26: 9649 | D26: 8455 | E26: 7012 | F26: 6081 | G26: 4716
A27: 39 | C27: 9649 | D27: 8455 | E27: 7012 | F27: 6081 | G27: 4716
A28: 40 | C28: 10807 | D28: 9471 | E28: 7819 | F28: 6780 | G28: 5260 | I28: TRUE | J28: TRUE | K28: TRUE | L28: TRUE | M28: TRUE
A29: 41 | C29: 10807 | D29: 9471 | E29: 7819 | F29: 6780 | G29: 5260
A30: 42 | C30: 10807 | D30: 9471 | E30: 7819 | F30: 6780 | G30: 5260
A31: 43 | C31: 10807 | D31: 9471 | E31: 7819 | F31: 6780 | G31: 5260
A32: 44 | C32: 10807 | D32: 9471 | E32: 7819 | F32: 6780 | G32: 5260
A33: 45 | C33: 12094 | D33: 10600 | E33: 8724 | F33: 7564 | G33: 5866 | I33: TRUE | J33: TRUE | K33: TRUE | L33: TRUE | M33: TRUE
A34: 46 | C34: 12094 | D34: 10600 | E34: 8724 | F34: 7564 | G34: 5866
A35: 47 | C35: 12094 | D35: 10600 | E35: 8724 | F35: 7564 | G35: 5866
A36: 48 | C36: 12094 | D36: 10600 | E36: 8724 | F36: 7564 | G36: 5866
A37: 49 | C37: 12094 | D37: 10600 | E37: 8724 | F37: 7564 | G37: 5866
A38: 50 | C38: 13541 | D38: 11870 | E38: 9745 | F38: 8451 | G38: 6554 | I38: TRUE | J38: TRUE | K38: TRUE | L38: TRUE | M38: TRUE
A39: 51 | C39: 13541 | D39: 11870 | E39: 9745 | F39: 8451 | G39: 6554
A40: 52 | C40: 13541 | D40: 11870 | E40: 9745 | F40: 8451 | G40: 6554
A41: 53 | C41: 13541 | D41: 11870 | E41: 9745 | F41: 8451 | G41: 6554
A42: 54 | C42: 13541 | D42: 11870 | E42: 9745 | F42: 8451 | G42: 6554
A43: 55 | C43: 15138 | D43: 13270 | E43: 10880 | F43: 9435 | G43: 7318 | I43: TRUE | J43: TRUE | K43: TRUE | L43: TRUE | M43: TRUE
A44: 56 | C44: 15138 | D44: 13270 | E44: 10880 | F44: 9435 | G44: 7318
A45: 57 | C45: 15138 | D45: 13270 | E45: 10880 | F45: 9435 | G45: 7318
A46: 58 | C46: 15138 | D46: 13270 | E46: 10880 | F46: 9435 | G46: 7318
A47: 59 | C47: 15138 | D47: 13270 | E47: 10880 | F47: 9435 | G47: 7318
A48: 60 | C48: 16202 | D48: 14202 | E48: 11635 | F48: 10089 | G48: 7824 | I48: TRUE | J48: TRUE | K48: TRUE | L48: TRUE | M48: TRUE
A49: 61 | C49: 18054 | D49: 15826 | E49: 12959 | F49: 11239 | G49: 8715 | I49: TRUE | J49: TRUE | K49: TRUE | L49: TRUE | M49: TRUE
A50: 62 | C50: 20058 | D50: 17581 | E50: 14394 | F50: 12480 | G50: 9678 | I50: TRUE | J50: TRUE | K50: TRUE | L50: TRUE | M50: TRUE
A51: 63 | C51: 22210 | D51: 19470 | E51: 15940 | F51: 13821 | G51: 10719 | I51: TRUE | J51: TRUE | K51: TRUE | L51: TRUE | M51: TRUE
A52: 64 | C52: 24517 | D52: 21488 | E52: 17596 | F52: 15258 | G52: 11832 | I52: TRUE | J52: TRUE | K52: TRUE | L52: TRUE | M52: TRUE
A53: 65 | C53: 26972 | D53: 23643 | E53: 19366 | F53: 16793 | G53: 13024 | I53: TRUE | J53: TRUE | K53: TRUE | L53: TRUE | M53: TRUE
A54: 66 | C54: 29581 | D54: 25929 | E54: 21247 | F54: 18424 | G54: 14290 | I54: TRUE | J54: TRUE | K54: TRUE | L54: TRUE | M54: TRUE
A55: 67 | C55: 32340 | D55: 28346 | E55: 23242 | F55: 20153 | G55: 15630 | I55: TRUE | J55: TRUE | K55: TRUE | L55: TRUE | M55: TRUE
A56: 68 | C56: 35249 | D56: 30897 | E56: 25348 | F56: 21980 | G56: 17047 | I56: TRUE | J56: TRUE | K56: TRUE | L56: TRUE | M56: TRUE
A57: 69 | C57: 38312 | D57: 33580 | E57: 27567 | F57: 23905 | G57: 18539 | I57: TRUE | J57: TRUE | K57: TRUE | L57: TRUE | M57: TRUE
A58: 70 | C58: 41523 | D58: 36396 | E58: 29896 | F58: 25925 | G58: 20105 | I58: TRUE | J58: TRUE | K58: TRUE | L58: TRUE | M58: TRUE
A59: 71 | C59: 44886 | D59: 39344 | E59: 32340 | F59: 28043 | G59: 21748 | I59: TRUE | J59: TRUE | K59: TRUE | L59: TRUE | M59: TRUE
A60: 72 | C60: 48401 | D60: 42427 | E60: 34894 | F60: 30256 | G60: 23465 | I60: TRUE | J60: TRUE | K60: TRUE | L60: TRUE | M60: TRUE
A61: 73 | C61: 52068 | D61: 45639 | E61: 37563 | F61: 32570 | G61: 25259 | I61: TRUE | J61: TRUE | K61: TRUE | L61: TRUE | M61: TRUE
A62: 74 | C62: 55886 | D62: 48984 | E62: 40341 | F62: 34980 | G62: 27128 | I62: TRUE | J62: TRUE | K62: TRUE | L62: TRUE | M62: TRUE
A63: 75 | C63: 59854 | D63: 52463 | E63: 43231 | F63: 37486 | G63: 29071 | I63: TRUE | J63: TRUE | K63: TRUE | L63: TRUE | M63: TRUE
A64: 76 | C64: 59854 | D64: 52463 | E64: 43231 | F64: 37486 | G64: 29071
A65: 77 | C65: 59854 | D65: 52463 | E65: 43231 | F65: 37486 | G65: 29071
A66: 78 | C66: 59854 | D66: 52463 | E66: 43231 | F66: 37486 | G66: 29071
A67: 79 | C67: 59854 | D67: 52463 | E67: 43231 | F67: 37486 | G67: 29071
A68: 80 | C68: 59854 | D68: 52463 | E68: 43231 | F68: 37486 | G68: 29071
A69: 81 | C69: 59854 | D69: 52463 | E69: 43231 | F69: 37486 | G69: 29071
A70: 82 | C70: 59854 | D70: 52463 | E70: 43231 | F70: 37486 | G70: 29071
A71: 83 | C71: 59854 | D71: 52463 | E71: 43231 | F71: 37486 | G71: 29071
A72: 84 | B72: o más | C72: 59854 | D72: 52463 | E72: 43231 | F72: 37486 | G72: 29071
A73: 1 | B73: Hijo | C73: 3075 | D73: 2695 | E73: 2294 | F73: 1990 | G73: 1543 | I73: TRUE | J73: TRUE | K73: TRUE | L73: TRUE | M73: TRUE
A74: 2 | B74: Hijos | C74: 5225 | D74: 4581 | E74: 3900 | F74: 3383 | G74: 2623 | I74: TRUE | J74: TRUE | K74: TRUE | L74: TRUE | M74: TRUE
A75: 3 | B75: Hijos o más | C75: 7378 | D75: 6466 | E75: 5505 | F75: 4774 | G75: 3703 | I75: TRUE | J75: TRUE | K75: TRUE | L75: TRUE | M75: TRUE
A77: BUPA GLOBAL ELITE - MENSUALES
A78: EDAD
C79: 1000 | D79: 2000 | E79: 3500
A80: 18 | C80: =C6*$K$2 -> 679 | D80: =D6*$K$2 -> 595 | E80: 503.0666667 | F80: 436.4266667 | G80: 338.4266667
A81: 19 | C81: =C7*$K$2 -> 679 | D81: 595 | E81: 503.0666667 | F81: 436.4266667 | G81: 338.4266667
A82: 20 | C82: 679 | D82: 595 | E82: 503.0666667 | F82: 436.4266667 | G82: 338.4266667
A83: 21 | C83: 679 | D83: 595 | E83: 503.0666667 | F83: 436.4266667 | G83: 338.4266667
A84: 22 | C84: 679 | D84: 595 | E84: 503.0666667 | F84: 436.4266667 | G84: 338.4266667
A85: 23 | C85: 679 | D85: 595 | E85: 503.0666667 | F85: 436.4266667 | G85: 338.4266667
A86: 24 | C86: 679 | D86: 595 | E86: 503.0666667 | F86: 436.4266667 | G86: 338.4266667
A87: 25 | C87: 725.3866667 | D87: 635.7866667 | E87: 534.3333333 | F87: 463.3066667 | G87: 359.4266667
A88: 26 | C88: 725.3866667 | D88: 635.7866667 | E88: 534.3333333 | F88: 463.3066667 | G88: 359.4266667
A89: 27 | C89: 725.3866667 | D89: 635.7866667 | E89: 534.3333333 | F89: 463.3066667 | G89: 359.4266667
A90: 28 | C90: 725.3866667 | D90: 635.7866667 | E90: 534.3333333 | F90: 463.3066667 | G90: 359.4266667
A91: 29 | C91: 725.3866667 | D91: 635.7866667 | E91: 534.3333333 | F91: 463.3066667 | G91: 359.4266667
A92: 30 | C92: 806.68 | D92: 707.0933333 | E92: 589.7733333 | F92: 511.28 | G92: 396.5733333
A93: 31 | C93: 806.68 | D93: 707.0933333 | E93: 589.7733333 | F93: 511.28 | G93: 396.5733333
A94: 32 | C94: 806.68 | D94: 707.0933333 | E94: 589.7733333 | F94: 511.28 | G94: 396.5733333
A95: 33 | C95: 806.68 | D95: 707.0933333 | E95: 589.7733333 | F95: 511.28 | G95: 396.5733333
A96: 34 | C96: 806.68 | D96: 707.0933333 | E96: 589.7733333 | F96: 511.28 | G96: 396.5733333
A97: 35 | C97: 900.5733333 | D97: 789.1333333 | E97: 654.4533333 | F97: 567.56 | G97: 440.16
A98: 36 | C98: 900.5733333 | D98: 789.1333333 | E98: 654.4533333 | F98: 567.56 | G98: 440.16
A99: 37 | C99: 900.5733333 | D99: 789.1333333 | E99: 654.4533333 | F99: 567.56 | G99: 440.16
A100: 38 | C100: 900.5733333 | D100: 789.1333333 | E100: 654.4533333 | F100: 567.56 | G100: 440.16
A101: 39 | C101: 900.5733333 | D101: 789.1333333 | E101: 654.4533333 | F101: 567.56 | G101: 440.16
A102: 40 | C102: 1008.653333 | D102: 883.96 | E102: 729.7733333 | F102: 632.8 | G102: 490.9333333
A103: 41 | C103: 1008.653333 | D103: 883.96 | E103: 729.7733333 | F103: 632.8 | G103: 490.9333333
A104: 42 | C104: 1008.653333 | D104: 883.96 | E104: 729.7733333 | F104: 632.8 | G104: 490.9333333
A105: 43 | C105: 1008.653333 | D105: 883.96 | E105: 729.7733333 | F105: 632.8 | G105: 490.9333333
A106: 44 | C106: 1008.653333 | D106: 883.96 | E106: 729.7733333 | F106: 632.8 | G106: 490.9333333
A107: 45 | C107: 1128.773333 | D107: 989.3333333 | E107: 814.24 | F107: 705.9733333 | G107: 547.4933333
A108: 46 | C108: 1128.773333 | D108: 989.3333333 | E108: 814.24 | F108: 705.9733333 | G108: 547.4933333
A109: 47 | C109: 1128.773333 | D109: 989.3333333 | E109: 814.24 | F109: 705.9733333 | G109: 547.4933333
A110: 48 | C110: 1128.773333 | D110: 989.3333333 | E110: 814.24 | F110: 705.9733333 | G110: 547.4933333
A111: 49 | C111: 1128.773333 | D111: 989.3333333 | E111: 814.24 | F111: 705.9733333 | G111: 547.4933333
A112: 50 | C112: 1263.826667 | D112: 1107.866667 | E112: 909.5333333 | F112: 788.76 | G112: 611.7066667
A113: 51 | C113: 1263.826667 | D113: 1107.866667 | E113: 909.5333333 | F113: 788.76 | G113: 611.7066667
A114: 52 | C114: 1263.826667 | D114: 1107.866667 | E114: 909.5333333 | F114: 788.76 | G114: 611.7066667
A115: 53 | C115: 1263.826667 | D115: 1107.866667 | E115: 909.5333333 | F115: 788.76 | G115: 611.7066667
A116: 54 | C116: 1263.826667 | D116: 1107.866667 | E116: 909.5333333 | F116: 788.76 | G116: 611.7066667
A117: 55 | C117: 1412.88 | D117: 1238.533333 | E117: 1015.466667 | F117: 880.6 | G117: 683.0133333
A118: 56 | C118: 1412.88 | D118: 1238.533333 | E118: 1015.466667 | F118: 880.6 | G118: 683.0133333
A119: 57 | C119: 1412.88 | D119: 1238.533333 | E119: 1015.466667 | F119: 880.6 | G119: 683.0133333
A120: 58 | C120: 1412.88 | D120: 1238.533333 | E120: 1015.466667 | F120: 880.6 | G120: 683.0133333
A121: 59 | C121: 1412.88 | D121: 1238.533333 | E121: 1015.466667 | F121: 880.6 | G121: 683.0133333
A122: 60 | C122: 1512.186667 | D122: 1325.52 | E122: 1085.933333 | F122: 941.64 | G122: 730.24
A123: 61 | C123: 1685.04 | D123: 1477.093333 | E123: 1209.506667 | F123: 1048.973333 | G123: 813.4
A124: 62 | C124: 1872.08 | D124: 1640.893333 | E124: 1343.44 | F124: 1164.8 | G124: 903.28
A125: 63 | C125: 2072.933333 | D125: 1817.2 | E125: 1487.733333 | F125: 1289.96 | G125: 1000.44
A126: 64 | C126: 2288.253333 | D126: 2005.546667 | E126: 1642.293333 | F126: 1424.08 | G126: 1104.32
A127: 65 | C127: 2517.386667 | D127: 2206.68 | E127: 1807.493333 | F127: 1567.346667 | G127: 1215.573333
A128: 66 | C128: 2760.893333 | D128: 2420.04 | E128: 1983.053333 | F128: 1719.573333 | G128: =G54*$K$2 -> 1333.733333
A129: 67 | C129: 3018.4 | D129: 2645.626667 | E129: 2169.253333 | F129: 1880.946667 | G129: 1458.8
A130: 68 | C130: 3289.906667 | D130: 2883.72 | E130: 2365.813333 | F130: 2051.466667 | G130: 1591.053333
A131: 69 | C131: 3575.786667 | D131: 3134.133333 | E131: 2572.92 | F131: 2231.133333 | G131: 1730.306667
A132: 70 | C132: 3875.48 | D132: 3396.96 | E132: 2790.293333 | F132: 2419.666667 | G132: 1876.466667
A133: 71 | C133: 4189.36 | D133: 3672.106667 | E133: 3018.4 | F133: 2617.346667 | G133: 2029.813333
A134: 72 | C134: 4517.426667 | D134: 3959.853333 | E134: 3256.773333 | F134: 2823.893333 | G134: 2190.066667
A135: 73 | C135: 4859.68 | D135: 4259.64 | E135: 3505.88 | F135: 3039.866667 | G135: 2357.506667
A136: 74 | C136: 5216.026667 | D136: 4571.84 | E136: 3765.16 | F136: 3264.8 | G136: 2531.946667
A137: 75 | C137: 5586.373333 | D137: 4896.546667 | E137: 4034.893333 | F137: 3498.693333 | G137: 2713.293333
A138: 76 | C138: 5586.373333 | D138: 4896.546667 | E138: 4034.893333 | F138: 3498.693333 | G138: 2713.293333
A139: 77 | C139: 5586.373333 | D139: 4896.546667 | E139: 4034.893333 | F139: 3498.693333 | G139: 2713.293333
A140: 78 | C140: 5586.373333 | D140: 4896.546667 | E140: 4034.893333 | F140: 3498.693333 | G140: 2713.293333
A141: 79 | C141: 5586.373333 | D141: 4896.546667 | E141: 4034.893333 | F141: 3498.693333 | G141: 2713.293333
A142: 80 | C142: 5586.373333 | D142: 4896.546667 | E142: 4034.893333 | F142: 3498.693333 | G142: 2713.293333
A143: 81 | C143: 5586.373333 | D143: 4896.546667 | E143: 4034.893333 | F143: 3498.693333 | G143: 2713.293333
A144: 82 | C144: 5586.373333 | D144: =D70*$K$2 -> 4896.546667 | E144: 4034.893333 | F144: 3498.693333 | G144: 2713.293333
A145: 83 | C145: =C71*$K$2 -> 5586.373333 | D145: 4896.546667 | E145: 4034.893333 | F145: 3498.693333 | G145: 2713.293333
A146: 84 | B146: o más | C146: 5586.373333 | D146: 4896.546667 | E146: 4034.893333 | F146: 3498.693333 | G146: 2713.293333
A147: 1 | B147: Hijo | C147: 287 | D147: 251.5333333 | E147: 214.1066667 | F147: 185.7333333 | G147: 144.0133333
A148: 2 | B148: Hijos | C148: 487.6666667 | D148: 427.56 | E148: 364 | F148: 315.7466667 | G148: 244.8133333
A149: 3 | B149: Hijos o más | C149: 688.6133333 | D149: 603.4933333 | E149: 513.8 | F149: 445.5733333 | G149: 345.6133333
A151: BUPA GLOBAL PREMIER
A152: TARIFAS ANUALES
A153: EDAD
C154: 250 | D154: 2000 | E154: 5000 | F154: 10000
A155: 18 | C155: 4781 | D155: 4337 | E155: 3321 | F155: 2470 | I155: TRUE | J155: TRUE | K155: TRUE | L155: TRUE
A156: 19 | C156: 4781 | D156: 4337 | E156: 3321 | F156: 2470
A157: 20 | C157: 4781 | D157: 4337 | E157: 3321 | F157: 2470
A158: 21 | C158: 4781 | D158: 4337 | E158: 3321 | F158: 2470
A159: 22 | C159: 4781 | D159: 4337 | E159: 3321 | F159: 2470
A160: 23 | C160: 4781 | D160: 4337 | E160: 3321 | F160: 2470
A161: 24 | C161: 4781 | D161: 4337 | E161: 3321 | F161: 2470
A162: 25 | C162: 5110 | D162: 4635 | E162: 3511 | F162: 2612 | I162: TRUE | J162: TRUE | K162: TRUE | L162: TRUE
A163: 26 | C163: 5110 | D163: 4635 | E163: 3511 | F163: 2612
A164: 27 | C164: 5110 | D164: 4635 | E164: 3511 | F164: 2612
A165: 28 | C165: 5110 | D165: 4635 | E165: 3511 | F165: 2612
A166: 29 | C166: 5110 | D166: 4635 | E166: 3511 | F166: 2612
A167: 30 | C167: 5682 | D167: 5157 | E167: 3855 | F167: 2867 | I167: TRUE | J167: TRUE | K167: TRUE | L167: TRUE
A168: 31 | C168: 5682 | D168: 5157 | E168: 3855 | F168: 2867
A169: 32 | C169: 5682 | D169: 5157 | E169: 3855 | F169: 2867
A170: 33 | C170: 5682 | D170: 5157 | E170: 3855 | F170: 2867
A171: 34 | C171: 5682 | D171: 5157 | E171: 3855 | F171: 2867
A172: 35 | C172: 6341 | D172: 5755 | E172: 4261 | F172: 3169 | I172: TRUE | J172: TRUE | K172: TRUE | L172: TRUE
A173: 36 | C173: 6341 | D173: 5755 | E173: 4261 | F173: 3169
A174: 37 | C174: 6341 | D174: 5755 | E174: 4261 | F174: 3169
A175: 38 | C175: 6341 | D175: 5755 | E175: 4261 | F175: 3169
A176: 39 | C176: 6341 | D176: 5755 | E176: 4261 | F176: 3169
A177: 40 | C177: 7102 | D177: 6446 | E177: 4735 | F177: 3523 | I177: TRUE | J177: TRUE | K177: TRUE | L177: TRUE
A178: 41 | C178: 7102 | D178: 6446 | E178: 4735 | F178: 3523
A179: 42 | C179: 7102 | D179: 6446 | E179: 4735 | F179: 3523
A180: 43 | C180: 7102 | D180: 6446 | E180: 4735 | F180: 3523
A181: 44 | C181: 7102 | D181: 6446 | E181: 4735 | F181: 3523
A182: 45 | C182: 7948 | D182: 7214 | E182: 5270 | F182: 3920 | I182: TRUE | J182: TRUE | K182: TRUE | L182: TRUE
A183: 46 | C183: 7948 | D183: 7214 | E183: 5270 | F183: 3920
A184: 47 | C184: 7948 | D184: 7214 | E184: 5270 | F184: 3920
A185: 48 | C185: 7948 | D185: 7214 | E185: 5270 | F185: 3920
A186: 49 | C186: 7948 | D186: 7214 | E186: 5270 | F186: 3920
A187: 50 | C187: 8902 | D187: 8078 | E187: 5879 | F187: 4374 | I187: TRUE | J187: TRUE | K187: TRUE | L187: TRUE
A188: 51 | C188: 8902 | D188: 8078 | E188: 5879 | F188: 4374
A189: 52 | C189: 8902 | D189: 8078 | E189: 5879 | F189: 4374
A190: 53 | C190: 8902 | D190: 8078 | E190: 5879 | F190: 4374
A191: 54 | C191: 8902 | D191: 8078 | E191: 5879 | F191: 4374
A192: 55 | C192: 9950 | D192: 9031 | E192: 6555 | F192: 4877 | I192: TRUE | J192: TRUE | K192: TRUE | L192: TRUE
A193: 56 | C193: 9950 | D193: 9031 | E193: 6555 | F193: 4877
A194: 57 | C194: 9950 | D194: 9031 | E194: 6555 | F194: 4877
A195: 58 | C195: 9950 | D195: 9031 | E195: 6555 | F195: 4877
A196: 59 | C196: 9950 | D196: 9031 | E196: 6555 | F196: 4877
A197: 60 | C197: 10650 | D197: 9663 | E197: 7007 | F197: 5211 | I197: TRUE | J197: TRUE | K197: TRUE | L197: TRUE
A198: 61 | C198: 11865 | D198: 10767 | E198: 7798 | F198: 5801 | I198: TRUE | J198: TRUE | K198: TRUE | L198: TRUE
A199: 62 | C199: 13181 | D199: 11964 | E199: 8661 | F199: 6443 | I199: TRUE | J199: TRUE | K199: TRUE | L199: TRUE
A200: 63 | C200: 14598 | D200: 13248 | E200: 9591 | F200: 7133 | I200: TRUE | J200: TRUE | K200: TRUE | L200: TRUE
A201: 64 | C201: 16113 | D201: 14623 | E201: 10590 | F201: 7877 | I201: TRUE | J201: TRUE | K201: TRUE | L201: TRUE
A202: 65 | C202: 17728 | D202: 16088 | E202: 11658 | F202: 8672 | I202: TRUE | J202: TRUE | K202: TRUE | L202: TRUE
A203: 66 | C203: 19442 | D203: 17642 | E203: 12795 | F203: 9518 | I203: TRUE | J203: TRUE | K203: TRUE | L203: TRUE
... 1275 more rows
